{"text_format":"1","workbook":"xlsx","n_sheets":5,"sheets":["Титул","сводные данные по бюджет  време","План","Кабинеты","Start"],"not_rendered":{"charts":0,"images":0,"macros":1,"external_links":0,"defined_names":0,"comments":0,"pivot_tables":0},"unopened":[],"bounds":{"document_bytes":16777216,"sheet_cells":100000,"rows_first":2000,"rows_last":500,"rows_between":2000,"halvings":0,"cell_chars":16384,"cell_head_chars":4096},"cells_cut":0,"cells_raw":0,"read":"whole","date_system":"1900"}

{"sheet":"Титул","index":0,"n_rows":33,"n_cols":45,"rows_kept":33,"cut":false,"hidden":false,"merged":[[28,7,29,8],[29,14,29,33],[29,34,29,61],[32,32,32,33],[32,34,32,36],[32,8,32,9],[32,14,32,24],[32,25,32,26],[32,27,32,31],[23,14,23,19],[23,20,23,61],[30,34,31,61],[31,14,31,33],[27,14,27,25],[27,27,27,31],[27,34,27,43],[27,44,27,47],[25,14,25,19],[25,20,25,31],[20,14,20,19],[20,20,20,60],[21,14,21,27],[21,30,21,33],[21,34,21,61],[17,14,18,61],[19,14,19,18],[19,20,19,61],[0,0,0,11],[1,0,2,11],[4,0,5,11],[4,14,5,61],[14,0,14,12],[6,0,7,11],[6,14,7,61],[9,0,10,11],[10,14,13,61],[14,14,15,61]]}
["Утверждаю"]
["Директор ОГБПОУ \"ДМК\""]
[]
[]
["И.А.Казаченко",null,null,null,null,null,null,null,null,null,null,null,null,null,"УЧЕБНЫЙ ПЛАН"]
[]
[null,null,null,null,null,null,null,null,null,null,null,null,null,null," программы подготовки специалистов среднего звена"]
[]
[]
["Приказ № 121 - у от 30.06.2023"]
[null,null,null,null,null,null,null,null,null,null,null,null,null,null,"Областное государственное  бюджетное  профессиональное образовательное  учреждение \"Димитровградский музыкальный колледж\""]
[]
[]
[]
["Рассмотрено Педагогическим Советом  Протокол № 08  от 30.06.2023",null,null,null,null,null,null,null,null,null,null,null,null,null,"наименование образовательного учреждения (организации)"]
[]
[]
[null,null,null,null,null,null,null,null,null,null,null,null,null,null,"по специальности среднего профессионального образования"]
[]
[null,null,null,null,null,null,null,null,null,null,null,null,null,null,"53.02.03",null,null,null,null,null,"Инструментальное исполнительство (по видам инструментов) Инструменты народного оркестра(баян, домра, балалайка, аккордеон, гитара (возможно гусли, гармонь)"]
[null,null,null,null,null,null,null,null,null,null,null,null,null,null,"код",null,null,null,null,null,"наименование специальности"]
[null,null,null,null,null,null,null,null,null,null,null,null,null,null,"по программе углубленной подготовки",null,null,null,null,null,null,null,null,null,null,null,null,null,null,null,"   на базе",null,null,null,"основного общего образования"]
[]
[null,null,null,null,null,null,null,null,null,null,null,null,null,null,"квалификация",null,null,null,null,null,"Артист, преподаватель, концертмейстер "]
[]
[null,null,null,null,null,null,null,null,null,null,null,null,null,null,"форма обучения",null,null,null,null,null,"Очная"]
[]
[null,null,null,null,null,null,null,null,null,null,null,null,null,null,"нормативный срок освоения ППССЗ  ",null,null,null,null,null,null,null,null,null,null,null,null,"3г 10м",null,null,null,null,null,null,"год начала подготовки по УП",null,null,null,null,null,null,null,null,null,2023]
[]
[null,null,null,null,null,null,null,null,null,null,null,null,null,null,"профиль получаемого профессионального образования",null,null,null,null,null,null,null,null,null,null,null,null,null,null,null,null,null,null,null,"Искусство и культура  53.00.00 Музыкальное искусство"]
[null,null,null,null,null,null,null,null,null,null,null,null,null,null,null,null,null,null,null,null,null,null,null,null,null,null,null,null,null,null,null,null,null,null,"при реализации программы среднего (полного) общего образования"]
[]
[null,null,null,null,null,null,null,null,null,null,null,null,null,null,"Приказ об утверждении ФГОС",null,null,null,null,null,null,null,null,null,null,"от ",null,"2021-05-17",null,null,null,null,"     № ",null,253]

{"sheet":"сводные данные по бюджет  време","index":1,"n_rows":10,"n_cols":59,"rows_kept":10,"cut":false,"hidden":false,"merged":[[0,0,0,52],[1,0,4,0],[1,1,2,18],[1,19,2,27],[1,28,1,48],[1,49,1,54],[3,1,3,6],[4,35,4,37],[4,38,4,39],[4,33,4,34],[4,25,4,27],[4,28,4,30],[4,31,4,32],[4,13,4,15],[4,16,4,18],[4,19,4,21],[4,22,4,24],[4,1,4,3],[4,4,4,6],[4,7,4,9],[4,10,4,12],[3,22,3,24],[3,25,3,27],[3,7,3,12],[1,55,3,57],[1,58,3,60],[2,28,2,34],[2,35,2,41],[2,42,2,48],[2,49,3,51],[2,52,3,54],[3,28,3,30],[3,31,3,32],[3,33,3,34],[3,35,3,37],[3,42,3,44],[3,45,3,46],[3,47,3,48],[3,38,3,39],[3,40,3,41],[3,13,3,18],[3,19,3,21],[5,1,5,3],[5,4,5,6],[5,7,5,9],[5,10,5,12],[5,13,5,15],[5,16,5,18],[5,19,5,21],[5,58,5,60],[5,49,5,51],[4,55,4,57],[4,58,4,60],[4,40,4,41],[4,42,4,44],[4,45,4,46],[4,47,4,48],[4,49,4,51],[4,52,4,54],[5,52,5,54],[5,55,5,57],[6,10,6,12],[6,13,6,15],[6,16,6,18],[6,19,6,21],[6,22,6,24],[5,47,5,48],[5,38,5,39],[5,40,5,41],[5,42,5,44],[5,45,5,46],[5,25,5,27],[5,28,5,30],[5,31,5,32],[5,33,5,34],[5,22,5,24],[5,35,5,37],[7,1,7,3],[7,4,7,6],[7,7,7,9],[7,10,7,12],[7,13,7,15],[6,52,6,54],[6,35,6,37],[6,38,6,39],[6,45,6,46],[7,16,7,18],[7,19,7,21],[7,31,7,32],[7,33,7,34],[7,35,7,37],[7,38,7,39],[6,25,6,27],[7,22,7,24],[7,52,7,54],[6,40,6,41],[6,42,6,44],[6,28,6,30],[6,1,6,3],[6,4,6,6],[6,7,6,9],[7,25,7,27],[7,28,7,30],[7,58,7,60],[7,42,7,44],[7,45,7,46],[7,47,7,48],[7,49,7,51],[6,31,6,32],[6,33,6,34],[6,47,6,48],[6,49,6,51],[7,40,7,41],[6,58,6,60],[6,55,6,57],[7,55,7,57],[8,58,8,60],[8,45,8,46],[8,47,8,48],[8,49,8,51],[8,52,8,54],[8,55,8,57],[9,33,9,34],[9,35,9,37],[9,38,9,39],[8,38,8,39],[8,35,8,37],[8,33,8,34],[8,40,8,41],[9,40,9,41],[9,52,9,54],[9,55,9,57],[8,42,8,44],[9,58,9,60],[9,42,9,44],[9,45,9,46],[9,47,9,48],[9,49,9,51],[8,1,8,3],[9,25,9,27],[9,1,9,3],[9,4,9,6],[9,7,9,9],[9,10,9,12],[9,19,9,21],[8,25,8,27],[9,22,9,24],[9,28,9,30],[9,31,9,32],[8,4,8,6],[8,7,8,9],[8,10,8,12],[8,31,8,32],[8,13,8,15],[8,16,8,18],[8,19,8,21],[8,22,8,24],[8,28,8,30],[9,13,9,15],[9,16,9,18]]}
["2 Сводные данные по бюджету времени"]
["Курс","Обучение по дисциплинам и междисциплинарным курсам",null,null,null,null,null,null,null,null,null,null,null,null,null,null,null,null,null,"Промежуточная аттестация",null,null,null,null,null,null,null,null,"Практики",null,null,null,null,null,null,null,null,null,null,null,null,null,null,null,null,null,null,null,null,"ГИА",null,null,null,null,null,"Каникулы",null,null,"Всего"]
[null,null,null,null,null,null,null,null,null,null,null,null,null,null,null,null,null,null,null,null,null,null,null,null,null,null,null,null,"Учебная практика",null,null,null,null,null,null,"Производственная практика (по профилю специальности)",null,null,null,null,null,null,"Производственная практика (преддипломная)",null,null,null,null,null,null,"Подго-\r\nтовка",null,null,"Прове-\r\nдение"]
[null,"Всего",null,null,null,null,null,"1 сем",null,null,null,null,null,"2 сем",null,null,null,null,null,"Всего",null,null,"1 сем",null,null,"2 сем",null,null,"Всего",null,null,"1 сем",null,"2 сем",null,"Всего",null,null,"1 сем",null,"2 сем",null,"Всего",null,null,"1 сем",null,"2 сем"]
[null,"нед.",null,null,"час.",null,null,"нед.",null,null,"час.",null,null,"нед.",null,null,"час.",null,null,"нед.",null,null,"нед.",null,null,"нед.",null,null,"нед.",null,null,"нед.",null,"нед.",null,"нед.",null,null,"нед.",null,"нед.",null,"нед.",null,null,"нед.",null,"нед.",null,"нед.",null,null,"нед.",null,null,"нед.",null,null,"нед."]
["I","36 ",null,null,"1942/1296",null,null,"16 ",null,null,"864/576",null,null,"20 ",null,null,"1078/720",null,null,"4 ",null,null,"2 ",null,null,"2 ",null,null,null,null,null,null,null,null,null,"1 ",null,null,null,null,"1 ",null,null,null,null,null,null,null,null,null,null,null,null,null,null,"2 ",null,null,"43 "]
["II","36 ",null,null,"1945/1296",null,null,"16 ",null,null,"864/576",null,null,"20 ",null,null,"1081/720",null,null,"4 ",null,null,"2 ",null,null,"2 ",null,null,null,null,null,null,null,null,null,"2 ",null,null,null,null,"2 ",null,null,null,null,null,null,null,null,null,null,null,null,null,null,"11 ",null,null,"53 "]
["III","36 ",null,null,"1945/1296",null,null,"16 ",null,null,"864/576",null,null,"20 ",null,null,"1081/720",null,null,"4 ",null,null,"2 ",null,null,"2 ",null,null,null,null,null,null,null,null,null,"2 ",null,null,null,null,"2 ",null,null,null,null,null,null,null,null,null,null,null,null,null,null,"10 ",null,null,"52 "]
["IV","35 ",null,null,"1890/1260",null,null,"16 ",null,null,"864/576",null,null,"19 ",null,null,"1026/684",null,null,"1 ",null,null,"1 ",null,null,null,null,null,null,null,null,null,null,null,null,null,null,null,null,null,null,null,"1 ",null,null,"1 ",null,null,null,"1 ",null,null,"3 ",null,null,"10 ",null,null,"51 "]
["Всего","143 ",null,null,"7722/5148",null,null,null,null,null,"3456/2304",null,null,null,null,null,"4266/2844",null,null,"13 ",null,null,null,null,null,null,null,null,null,null,null,null,null,null,null,"5 ",null,null,null,null,null,null,"1 ",null,null,null,null,null,null,"1 ",null,null,"3 ",null,null,"33 ",null,null,"199 "]

{"sheet":"План","index":2,"n_rows":84,"n_cols":134,"rows_kept":84,"cut":false,"hidden":false,"merged":[[83,125,83,131],[83,90,83,96],[83,97,83,103],[83,104,83,110],[83,111,83,117],[82,125,82,131],[82,76,82,82],[82,83,82,89],[82,90,82,96],[82,97,82,103],[82,111,82,117],[83,34,83,40],[83,41,83,47],[83,48,83,54],[83,55,83,61],[83,62,83,68],[83,69,83,75],[83,76,83,82],[83,83,83,89],[83,118,83,124],[81,125,81,131],[82,20,82,26],[82,27,82,33],[82,34,82,40],[82,41,82,47],[82,48,82,54],[82,55,82,61],[82,62,82,68],[82,69,82,75],[82,104,82,110],[80,83,80,89],[82,118,82,124],[81,97,81,103],[81,111,81,117],[81,118,81,124],[81,76,81,82],[81,83,81,89],[81,90,81,96],[81,104,81,110],[79,0,83,0],[79,1,79,19],[83,1,83,19],[83,20,83,26],[79,132,83,133],[80,90,80,96],[80,111,80,117],[79,111,79,117],[79,76,79,82],[80,97,80,103],[83,27,83,33],[82,1,82,19],[81,1,81,19],[80,1,80,19],[79,125,79,131],[79,118,79,124],[79,83,79,89],[79,90,79,96],[79,97,79,103],[79,104,79,110],[80,104,80,110],[80,118,80,124],[80,125,80,131],[80,76,80,82],[77,115,77,116],[77,125,77,127],[77,129,77,130],[77,118,77,120],[77,122,77,123],[77,97,77,99],[77,101,77,102],[77,104,77,106],[77,108,77,109],[77,17,77,19],[77,73,77,74],[77,76,77,78],[77,80,77,81],[77,83,77,85],[77,87,77,88],[77,90,77,92],[77,94,77,95],[77,111,77,113],[76,111,76,113],[76,115,76,116],[76,125,76,127],[76,129,76,130],[76,118,76,120],[76,122,76,123],[76,97,76,99],[76,101,76,102],[76,104,76,106],[76,108,76,109],[75,104,75,106],[75,108,75,109],[76,17,76,19],[76,73,76,74],[76,76,76,78],[76,80,76,81],[76,83,76,85],[76,87,76,88],[76,90,76,92],[76,94,76,95],[74,125,74,127],[74,129,74,130],[74,118,74,120],[74,122,74,123],[74,97,74,99],[74,101,74,102],[74,104,74,106],[74,108,74,109],[75,17,75,19],[75,73,75,74],[75,76,75,78],[75,80,75,81],[75,83,75,85],[75,87,75,88],[75,90,75,92],[75,94,75,95],[75,111,75,113],[75,115,75,116],[75,125,75,127],[75,129,75,130],[75,118,75,120],[75,122,75,123],[75,97,75,99],[75,101,75,102],[73,118,73,120],[73,122,73,124],[73,97,73,99],[73,101,73,103],[73,104,73,106],[73,108,73,110],[74,17,74,19],[74,73,74,74],[74,76,74,78],[74,80,74,81],[74,83,74,85],[74,87,74,88],[74,90,74,92],[74,94,74,95],[74,111,74,113],[74,115,74,116],[69,94,69,96],[69,97,69,98],[69,101,69,103],[69,125,69,126],[73,3,73,15],[73,17,73,19],[69,129,69,131],[69,104,69,105],[69,108,69,110],[69,111,69,112],[69,115,69,117],[69,118,69,119],[69,122,69,124],[73,83,73,85],[73,87,73,89],[73,76,73,78],[73,80,73,82],[73,90,73,92],[73,94,73,96],[69,76,69,77],[73,111,73,113],[73,115,73,117],[73,125,73,127],[73,129,73,131],[69,17,69,19],[69,20,69,21],[69,27,69,28],[69,34,69,35],[69,41,69,42],[69,80,69,82],[69,83,69,84],[69,87,69,89],[69,90,69,91],[4,132,5,132],[4,133,5,133],[4,125,5,125],[4,126,5,126],[4,127,5,127],[4,128,4,131],[4,118,5,118],[4,119,5,119],[4,120,5,120],[4,121,4,124],[4,111,5,111],[4,112,5,112],[4,113,5,113],[4,114,4,117],[4,104,5,104],[4,105,5,105],[4,106,5,106],[4,107,4,110],[4,97,5,97],[4,98,5,98],[4,99,5,99],[4,100,4,103],[4,90,5,90],[4,91,5,91],[4,92,5,92],[4,93,4,96],[4,83,5,83],[4,84,5,84],[4,85,5,85],[4,86,4,89],[4,76,5,76],[4,77,5,77],[4,78,5,78],[4,79,4,82],[2,118,2,124],[2,125,2,131],[3,104,3,110],[3,111,3,117],[3,118,3,124],[3,125,3,131],[3,20,3,26],[3,27,3,33],[3,34,3,40],[3,41,3,47],[2,20,2,26],[2,27,2,33],[2,90,2,96],[2,97,2,103],[2,34,2,40],[2,41,2,47],[2,48,2,54],[2,55,2,61],[3,97,3,103],[2,104,2,110],[2,111,2,117],[2,62,2,68],[2,69,2,75],[2,76,2,82],[2,83,2,89],[3,76,3,82],[3,83,3,89],[3,90,3,96],[4,28,5,28],[4,29,5,29],[4,30,4,33],[3,62,3,68],[3,69,3,75],[3,48,3,54],[4,35,5,35],[4,36,5,36],[4,37,4,40],[4,69,5,69],[4,70,5,70],[4,71,5,71],[4,72,4,75],[4,62,5,62],[4,63,5,63],[4,64,5,64],[4,65,4,68],[4,55,5,55],[4,56,5,56],[4,57,5,57],[4,20,5,20],[4,21,5,21],[3,55,3,61],[4,48,5,48],[4,49,5,49],[4,50,5,50],[4,51,4,54],[4,41,5,41],[4,42,5,42],[4,43,5,43],[4,44,4,47],[4,22,5,22],[4,23,4,26],[4,34,5,34],[4,58,4,61],[0,0,5,0],[0,1,5,1],[0,3,1,9],[0,10,1,19],[2,15,2,19],[2,3,5,3],[2,4,5,4],[2,5,5,5],[3,15,5,15],[3,16,3,19],[2,7,5,7],[0,2,5,2],[4,16,5,16],[4,17,5,17],[4,18,5,18],[4,19,5,19],[0,132,3,133],[77,3,77,15],[76,3,76,15],[0,20,0,131],[1,20,1,33],[1,34,1,47],[1,104,1,117],[1,118,1,131],[1,76,1,89],[75,3,75,15],[74,3,74,15],[69,3,69,11],[2,8,5,8],[2,9,5,9],[2,11,5,11],[2,13,5,13],[2,6,5,6],[70,17,70,19],[71,17,71,19],[72,17,72,19],[1,90,1,103],[1,48,1,61],[1,62,1,75],[4,27,5,27]]}
["Индекс","Наименование циклов, разделов,\r\nдисциплин, профессиональных модулей, МДК, практик","Групповые, мелкогрупповые, индивидуальные формы занятий","Формы промежуточной аттестации",null,null,null,null,null,null,"Учебная нагрузка обучающихся, ч.",null,null,null,null,null,null,null,null,null,"Распределение по курсам и семестрам",null,null,null,null,null,null,null,null,null,null,null,null,null,null,null,null,null,null,null,null,null,null,null,null,null,null,null,null,null,null,null,null,null,null,null,null,null,null,null,null,null,null,null,null,null,null,null,null,null,null,null,null,null,null,null,null,null,null,null,null,null,null,null,null,null,null,null,null,null,null,null,null,null,null,null,null,null,null,null,null,null,null,null,null,null,null,null,null,null,null,null,null,null,null,null,null,null,null,null,null,null,null,null,null,null,null,null,null,null,null,null,"Максимальная учебная нагрузка"]
[null,null,null,null,null,null,null,null,null,null,null,null,null,null,null,null,null,null,null,null,"Курс 1",null,null,null,null,null,null,null,null,null,null,null,null,null,"Курс 2",null,null,null,null,null,null,null,null,null,null,null,null,null,"Курс 3",null,null,null,null,null,null,null,null,null,null,null,null,null,"Курс 4",null,null,null,null,null,null,null,null,null,null,null,null,null,"Курс 5",null,null,null,null,null,null,null,null,null,null,null,null,null,"Курс 6",null,null,null,null,null,null,null,null,null,null,null,null,null,"Курс 7",null,null,null,null,null,null,null,null,null,null,null,null,null,"Курс 8"]
[null,null,null,"Экзамены","Зачеты","Диффер. зачеты","Курсовые проекты (работы)","Итоговые письм. КР","Домашние КР","Другие формы контроля",null,"Максимальная",null,"Самостоятельная",null,"Обязательная",null,null,null,null,"Семестр 1",null,null,null,null,null,null,"Семестр 2",null,null,null,null,null,null,"Семестр 3",null,null,null,null,null,null,"Семестр 4",null,null,null,null,null,null,"Семестр 5",null,null,null,null,null,null,"Семестр 6",null,null,null,null,null,null,"Семестр 7",null,null,null,null,null,null,"Семестр 8",null,null,null,null,null,null,"Семестр 9",null,null,null,null,null,null,"Семестр A",null,null,null,null,null,null,"Семестр B",null,null,null,null,null,null,"Семестр C",null,null,null,null,null,null,"Семестр D",null,null,null,null,null,null,"Семестр E",null,null,null,null,null,null,"Семестр F",null,null,null,null,null,null,"Семестр G"]
[null,null,null,null,null,null,null,null,null,null,null,null,null,null,null,"Всего","в том числе",null,null,null,"26  нед",null,null,null,null,null,null,"26  нед",null,null,null,null,null,null,"26  нед",null,null,null,null,null,null,"26  нед",null,null,null,null,null,null,"26  нед",null,null,null,null,null,null,"26  нед",null,null,null,null,null,null,"26  нед",null,null,null,null,null,null,"26  нед",null,null,null,null,null,null,"26  нед",null,null,null,null,null,null,"26  нед",null,null,null,null,null,null,"26  нед",null,null,null,null,null,null,"26  нед",null,null,null,null,null,null,"26  нед",null,null,null,null,null,null,"26  нед",null,null,null,null,null,null," нед",null,null,null,null,null,null," нед"]
[null,null,null,null,null,null,null,null,null,null,null,null,null,null,null,null,"Теор. обучение","Лаб. и пр. занятия",null,"Курс. проект.","Максим.","Самост.","Всего","в том числе",null,null,null,"Максим.","Самост.","Всего","в том числе",null,null,null,"Максим.","Самост.","Всего","в том числе",null,null,null,"Максим.","Самост.","Всего","в том числе",null,null,null,"Максим.","Самост.","Всего","в том числе",null,null,null,"Максим.","Самост.","Всего","в том числе",null,null,null,"Максим.","Самост.","Всего","в том числе",null,null,null,"Максим.","Самост.","Всего","в том числе",null,null,null,"Максим.","Самост.","Всего","в том числе",null,null,null,"Максим.","Самост.","Всего","в том числе",null,null,null,"Максим.","Самост.","Всего","в том числе",null,null,null,"Максим.","Самост.","Всего","в том числе",null,null,null,"Максим.","Самост.","Всего","в том числе",null,null,null,"Максим.","Самост.","Всего","в том числе",null,null,null,"Максим.","Самост.","Всего","в том числе",null,null,null,"Максим.","Самост.","Всего","в том числе",null,null,null,"Обяз. часть","Вар. часть"]
[null,null,null,null,null,null,null,null,null,null,null,null,null,null,null,null,null,null,null,null,null,null,null,"Теор. обучение","Лаб. и пр. занятия","Лаб. занятия","Курс. проект.",null,null,null,"Теор. обучение","Лаб. и пр. занятия","Лаб. занятия","Курс. проект.",null,null,null,"Теор. обучение","Лаб. и пр. занятия","Лаб. занятия","Курс. проект.",null,null,null,"Теор. обучение","Лаб. и пр. занятия","Лаб. занятия","Курс. проект.",null,null,null,"Теор. обучение","Лаб. и пр. занятия","Лаб. занятия","Курс. проект.",null,null,null,"Теор. обучение","Лаб. и пр. занятия","Лаб. занятия","Курс. проект.",null,null,null,"Теор. обучение","Лаб. и пр. занятия","Лаб. занятия","Курс. проект.",null,null,null,"Теор. обучение","Лаб. и пр. занятия","Лаб. занятия","Курс. проект.",null,null,null,"Теор. обучение","Лаб. и пр. занятия","Лаб. занятия","Курс. проект.",null,null,null,"Теор. обучение","Лаб. и пр. занятия","Лаб. занятия","Курс. проект.",null,null,null,"Теор. обучение","Лаб. и пр. занятия","Лаб. занятия","Курс. проект.",null,null,null,"Теор. обучение","Лаб. и пр. занятия","Лаб. занятия","Курс. проект.",null,null,null,"Теор. обучение","Лаб. и пр. занятия","Лаб. занятия","Курс. проект.",null,null,null,"Теор. обучение","Лаб. и пр. занятия","Лаб. занятия","Курс. проект.",null,null,null,"Теор. обучение","Лаб. и пр. занятия","Лаб. занятия","Курс. проект.",null,null,null,"Теор. обучение","Лаб. и пр. занятия","Лаб. занятия","Курс. проект."]
["1","2",3,4,5,6,"6","7","8",7,"10",8,"12",9,"14",10,11,12,"18",13,"20",14,15,16,17,"25",18,"27",19,20,21,22,"32",23,"34",24,25,26,27,"39",28,"41",29,30,31,32,"46",33,"48",34,35,36,37,"53",38,"55",39,40,41,42,"60",43,"62",44,45,46,47,"67",48,"69",49,50,51,52,"74",53,"76","77","78","79","80","81","82","83","84","85","86","87","88","89","90","91","92","93","94","95","96","97","98","99","100","101","102","103","104","105","106","107","108","109","110","111","112","113","114","115","116","117","118","119","120","121","122","123","124","125","126","127","128","129","130","131",132,54]
[null,"час/нед",null,null,null,null,null,null,null,null,null,null,null,null,null,null,null,null,null,null,31.5,null,{"$f":"W9/16","v":21},null,null,null,null,31.5,null,{"$f":"AD9/20","v":21},null,null,null,null,22.5,null,{"$f":"AK9/16","v":15},null,null,null,null,22.5,null,{"$f":"AR9/20","v":15},null,null,null,null,4.5,null,3,null,null,null,null,4.5,null,3,null,null,null,null,null,null,null,null,null,null,null,null,null,null,null,null,null,null,"NaN",null,"NaN",null,null,null,null,"NaN",null,"NaN",null,null,null,null,"NaN",null,"NaN",null,null,null,null,"NaN",null,"NaN",null,null,null,null,"NaN",null,"NaN",null,null,null,null,"NaN",null,"NaN",null,null,null,null,"NaN",null,"NaN",null,null,null,null,"NaN",null,"NaN"]
["ОУЦ.00","Общеобразовательный учебный цикл",null,3,4,6,null,null,null,14,null,2106,0,702,0,1404,1276,128,null,null,504,168,336,320,16,null,0,null,210,420,380,40,null,0,null,120,240,208,32,null,0,null,150,300,260,40,null,0,null,null,null,null,null,null,null,null,null,null,null,null,null,null,null,null,null,null,null,null,null,null,null,null,null,null,null,null,null,null,null,null,null,null,null,null,null,null,null,null,null,null,null,null,null,null,null,null,null,null,null,null,null,null,null,null,null,null,null,null,null,null,null,null,null,null,null,null,null,null,null,null,null,null,null,null,null,null,null,null,null,null,null,null,1404]
["ОУП.00","Обязательный учебные предметы",null,3,4,6,{"$error":"#REF!"},{"$error":"#REF!"},{"$error":"#REF!"},14,null,1134,0,378,0,756,628,128,null,null,264,88,176,160,16,0,0,330,110,220,180,40,0,0,240,80,160,128,32,0,0,300,100,200,160,40,0,0,null,{"$f":"SUM(AX14:AX19)","v":0},{"$f":"SUM(AY14:AY19)","v":0},{"$f":"SUM(AZ14:AZ19)","v":0},{"$f":"SUM(BA14:BA19)","v":0},null,{"$f":"SUM(BC14:BC19)","v":0},null,{"$f":"SUM(BE14:BE19)","v":0},{"$f":"SUM(BF14:BF19)","v":0},{"$f":"SUM(BG14:BG19)","v":0},{"$f":"SUM(BH14:BH19)","v":0},null,{"$f":"SUM(BJ14:BJ19)","v":0},null,{"$f":"SUM(BL14:BL19)","v":0},{"$f":"SUM(BM14:BM19)","v":0},{"$f":"SUM(BN14:BN19)","v":0},{"$f":"SUM(BO14:BO19)","v":0},null,{"$f":"SUM(BQ14:BQ19)","v":0},null,{"$f":"SUM(BS14:BS19)","v":0},{"$f":"SUM(BT14:BT19)","v":0},{"$f":"SUM(BU14:BU19)","v":0},{"$f":"SUM(BV14:BV19)","v":0},null,{"$f":"SUM(BX14:BX19)","v":0},null,null,null,null,null,null,null,null,null,null,null,null,null,null,null,null,null,null,null,null,null,null,null,null,null,null,null,null,null,null,null,null,null,null,null,null,null,null,null,null,null,null,null,null,null,null,null,null,null,null,null,null,null,null,null,null,756,{"$f":"SUM(ED14:ED19)","v":0}]
["ОУП.01"," Русский язык","гр",4,null,null,null,null,null,123,null,{"$f":"N11+P11","v":108},null,{"$f":"V11+AC11+AJ11+AQ11+AX11+BE11+BL11+BS11","v":36},null,{"$f":"W11+AD11+AK11+AR11+AY11+BF11+BM11+BT11","v":72},{"$f":"X11+AE11+AL11+AS11+AZ11+BG11+BN11+BU11","v":72},{"$f":"Y11+AF11+AM11+AT11+BA11+BH11+BO11+BV11","v":0},null,null,24,8,16,16,null,null,null,30,10,20,20,null,null,null,24,8,16,16,null,null,null,30,10,20,20,null,null,null,null,null,null,null,null,null,null,null,null,null,null,null,null,null,null,null,null,null,null,null,null,null,null,null,null,null,null,null,null,null,null,null,null,null,null,null,null,null,null,null,null,null,null,null,null,null,null,null,null,null,null,null,null,null,null,null,null,null,null,null,null,null,null,null,null,null,null,null,null,null,null,null,null,null,null,null,null,null,null,null,null,null,null,null,72]
["ОУП.02"," Литература","гр",4,null,null,null,null,null,123,null,{"$f":"N12+P12","v":132},null,{"$f":"V12+AC12+AJ12+AQ12+AX12+BE12+BL12+BS12","v":44},null,{"$f":"W12+AD12+AK12+AR12+AY12+BF12+BM12+BT12","v":88},{"$f":"X12+AE12+AL12+AS12+AZ12+BG12+BN12+BU12","v":88},{"$f":"Y12+AF12+AM12+AT12+BA12+BH12+BO12+BV12","v":0},null,null,48,16,32,32,null,null,null,30,10,20,20,null,null,null,48,8,16,16,null,null,null,60,10,20,20,null,null,null,null,null,null,null,null,null,null,null,null,null,null,null,null,null,null,null,null,null,null,null,null,null,null,null,null,null,null,null,null,null,null,null,null,null,null,null,null,null,null,null,null,null,null,null,null,null,null,null,null,null,null,null,null,null,null,null,null,null,null,null,null,null,null,null,null,null,null,null,null,null,null,null,null,null,null,null,null,null,null,null,null,null,null,null,124]
["ОУП.03","Родная литература","гр",null,null,null,null,null,null,4,null,54,null,18,null,36,36,null,null,null,null,null,null,null,null,null,null,null,null,null,null,null,null,null,null,8,16,16,null,null,null,null,10,20,20]
["ОУП.04","Иностранный язык","мг",null,null,34,null,null,null,12,null,{"$f":"N14+P14","v":192},null,{"$f":"V14+AC14+AJ14+AQ14+AX14+BE14+BL14+BS14","v":64},null,{"$f":"W14+AD14+AK14+AR14+AY14+BF14+BM14+BT14","v":128},{"$f":"X14+AE14+AL14+AS14+AZ14+BG14+BN14+BU14","v":0},{"$f":"Y14+AF14+AM14+AT14+BA14+BH14+BO14+BV14","v":128},null,null,24,8,16,null,16,null,null,60,20,40,null,40,null,null,48,16,32,null,32,null,null,60,20,40,null,40,null,null,null,null,null,null,null,null,null,null,null,null,null,null,null,null,null,null,null,null,null,null,null,null,null,null,null,null,null,null,null,null,null,null,null,null,null,null,null,null,null,null,null,null,null,null,null,null,null,null,null,null,null,null,null,null,null,null,null,null,null,null,null,null,null,null,null,null,null,null,null,null,null,null,null,null,null,null,null,null,null,null,null,null,null,null,128]
["ОУП.05","Обществознание","гр",null,null,4,null,null,null,null,null,60,null,20,null,40,40,0,null,null,null,null,null,null,null,null,null,null,null,null,null,null,null,null,null,null,null,null,null,null,null,60,20,40,40,null,null,null,null,null,null,null,null,null,null,null,null,null,null,null,null,null,null,null,null,null,null,null,null,null,null,null,null,null,null,null,null,null,null,null,null,null,null,null,null,null,null,null,null,null,null,null,null,null,null,null,null,null,null,null,null,null,null,null,null,null,null,null,null,null,null,null,null,null,null,null,null,null,null,null,null,null,null,null,null,null,null,null,null,null,null,null,40]
["ОУП.06","Математика","мг",3,null,null,null,null,null,12,null,102,null,34,null,{"$f":"W16+AD16+AK16+AR16+AY16+BF16+BM16+BT16","v":68},68,0,null,null,24,8,16,16,null,null,null,30,10,20,20,null,null,null,48,16,32,32,null,null,null,null,null,null,null,null,null,null,null,null,null,null,null,null,null,null,null,null,null,null,null,null,null,null,null,null,null,null,null,null,null,null,null,null,null,null,null,null,null,null,null,null,null,null,null,null,null,null,null,null,null,null,null,null,null,null,null,null,null,null,null,null,null,null,null,null,null,null,null,null,null,null,null,null,null,null,null,null,null,null,null,null,null,null,null,null,null,null,null,null,null,null,68]
["ОУП.07","Естествознание","гр",null,null,2,null,null,null,1,null,{"$f":"N17+P17","v":108},null,{"$f":"V17+AC17+AJ17+AQ17+AX17+BE17+BL17+BS17","v":36},null,72,72,0,null,null,48,16,32,32,null,null,null,60,20,40,40,null,null,null,null,null,null,null,null,null,null,null,null,null,null,null,null,null,null,null,null,null,null,null,null,null,null,null,null,null,null,null,null,null,null,null,null,null,null,null,null,null,null,null,null,null,null,null,null,null,null,null,null,null,null,null,null,null,null,null,null,null,null,null,null,null,null,null,null,null,null,null,null,null,null,null,null,null,null,null,null,null,null,null,null,null,null,null,null,null,null,null,null,null,null,null,null,null,null,null,null,null,72]
["ОУП.08","Астрономия","гр",null,null,4,null,null,null,3,null,{"$f":"N18+P18","v":54},null,{"$f":"V18+AC18+AJ18+AQ18+AX18+BE18+BL18+BS18","v":18},null,36,36,0,null,null,null,null,null,null,null,null,null,null,null,null,null,null,null,null,24,8,16,16,null,null,null,30,10,20,20,null,null,null,null,null,null,null,null,null,null,null,null,null,null,null,null,null,null,null,null,null,null,null,null,null,null,null,null,null,null,null,null,null,null,null,null,null,null,null,null,null,null,null,null,null,null,null,null,null,null,null,null,null,null,null,null,null,null,null,null,null,null,null,null,null,null,null,null,null,null,null,null,null,null,null,null,null,null,null,null,null,null,null,null,null,null,null,36]
["ОУП.09","Основы безопасности жизнедеятельности","гр",null,null,2,null,null,null,1,null,108,null,36,null,72,72,0,null,null,48,16,32,32,null,null,null,60,20,40,40,null,null,null,null,null,null,null,null,null,null,null,null,null,null,null,null,null,null,null,null,null,null,null,null,null,null,null,null,null,null,null,null,null,null,null,null,null,null,null,null,null,null,null,null,null,null,null,null,null,null,null,null,null,null,null,null,null,null,null,null,null,null,null,null,null,null,null,null,null,null,null,null,null,null,null,null,null,null,null,null,null,null,null,null,null,null,null,null,null,null,null,null,null,null,null,null,null,null,null,null,null,72]
["ОУП.10","Физическая культура","гр",null,1234,null,null,null,null,null,null,216,null,72,null,144,144,0,null,null,48,16,32,32,null,null,null,60,20,40,40,null,null,null,48,16,32,32,null,null,null,60,20,40,40,null,null,null,null,null,null,null,null,null,null,null,null,null,null,null,null,null,null,null,null,null,null,null,null,null,null,null,null,null,null,null,null,null,null,null,null,null,null,null,null,null,null,null,null,null,null,null,null,null,null,null,null,null,null,null,null,null,null,null,null,null,null,null,null,null,null,null,null,null,null,null,null,null,null,null,null,null,null,null,null,null,null,null,null,null,null,null,144]
["ПУП.00","Профильные учебные предметы",null,8,0,1,{"$f":"LEN(#REF!)+LEN(#REF!)+LEN(G26)+LEN(#REF!)+LEN(#REF!)+LEN(#REF!)+LEN(G27)","v":{"$error":"#REF!"}},{"$f":"LEN(#REF!)+LEN(#REF!)+LEN(H26)+LEN(#REF!)+LEN(#REF!)+LEN(#REF!)+LEN(H27)","v":{"$error":"#REF!"}},{"$f":"LEN(#REF!)+LEN(#REF!)+LEN(I26)+LEN(#REF!)+LEN(#REF!)+LEN(#REF!)+LEN(I27)","v":{"$error":"#REF!"}},7,null,972,{"$f":"SUM(M21:M27)","v":0},324,{"$f":"SUM(O21:O27)","v":0},648,648,{"$f":"SUM(R21:R27)","v":0},null,null,240,80,160,160,{"$f":"SUM(Y21:Y27)","v":0},{"$f":"SUM(Z21:Z27)","v":0},{"$f":"SUM(AA21:AA27)","v":0},{"$f":"SUM(AB21:AB27)","v":360},100,200,200,{"$f":"SUM(AF21:AF27)","v":0},{"$f":"SUM(AG21:AG27)","v":0},{"$f":"SUM(AH21:AH27)","v":0},{"$f":"SUM(AI21:AI27)","v":192},40,80,80,{"$f":"SUM(AM21:AM27)","v":0},{"$f":"SUM(AN21:AN27)","v":0},{"$f":"SUM(AO21:AO27)","v":0},{"$f":"SUM(AP21:AP27)","v":240},50,100,100,{"$f":"SUM(AT21:AT27)","v":0},0,0,72,24,48,48,0,0,0,90,30,60,60,0,0,0,0,0,0,0,0,0,0,0,0,0,0,0,0,0,0,{"$f":"SUM(BZ21:BZ27)","v":0},0,0,0,0,0,0,0,0,0,0,0,0,0,0,0,0,0,0,0,0,0,0,0,0,0,0,0,0,0,0,0,{"$f":"SUM(DF21:DF27)","v":0},0,0,0,0,0,0,0,0,0,0,0,0,0,0,0,0,0,0,0,0,0,0,648,{"$f":"SUM(ED21:ED27)","v":0}]
["ПУП.01","История мировой культуры","гр",null,null,4,null,null,null,123,null,{"$f":"N22+P22","v":216},null,{"$f":"V22+AC22+AJ22+AQ22+AX22+BE22+BL22+BS22","v":72},null,{"$f":"W22+AD22+AK22+AR22+AY22+BF22+BM22+BT22","v":144},144,0,null,null,48,16,32,32,null,null,null,60,20,40,40,null,null,null,48,16,32,32,null,null,null,60,20,40,40,null,null,null,null,null,null,null,null,null,null,null,null,null,null,null,null,null,null,null,null,null,null,null,null,null,null,null,null,null,null,null,null,null,null,null,null,null,null,null,null,null,null,null,null,null,null,null,null,null,null,null,null,null,null,null,null,null,null,null,null,null,null,null,null,null,null,null,null,null,null,null,null,null,null,null,null,null,null,null,null,null,null,null,null,null,null,null,144]
["ПУП.02","История","гр",2,null,null,null,null,null,1,null,{"$f":"N23+P23","v":216},null,{"$f":"V23+AC23+AJ23+AQ23+AX23+BE23+BL23+BS23","v":72},null,{"$f":"W23+AD23+AK23+AR23+AY23+BF23+BM23+BT23","v":144},{"$f":"X23+AE23+AL23+AS23+AZ23+BG23+BN23+BU23","v":144},{"$f":"Y23+AF23+AM23+AT23+BA23+BH23+BO23+BV23","v":0},null,null,96,32,64,64,null,null,null,120,40,80,80,null,null,null,null,null,null,null,null,null,null,null,null,null,null,null,null,null,null,null,null,null,null,null,null,null,null,null,null,null,null,null,null,null,null,null,null,null,null,null,null,null,null,null,null,null,null,null,null,null,null,null,null,null,null,null,null,null,null,null,null,null,null,null,null,null,null,null,null,null,null,null,null,null,null,null,null,null,null,null,null,null,null,null,null,null,null,null,null,null,null,null,null,null,null,null,null,null,null,null,null,null,144]
["ПУП.03","Народная музыкальная культура","гр",2,null,null,null,null,null,1,null,{"$f":"N24+P24","v":54},null,{"$f":"V24+AC24+AJ24+AQ24+AX24+BE24+BL24+BS24","v":18},null,{"$f":"W24+AD24+AK24+AR24+AY24+BF24+BM24+BT24","v":36},36,0,null,null,24,8,16,16,null,null,null,30,10,20,20,null,null,null,null,null,null,null,null,null,null,null,null,null,null,null,null,null,null,null,null,null,null,null,null,null,null,null,null,null,null,null,null,null,null,null,null,null,null,null,null,null,null,null,null,null,null,null,null,null,null,null,null,null,null,null,null,null,null,null,null,null,null,null,null,null,null,null,null,null,null,null,null,null,null,null,null,null,null,null,null,null,null,null,null,null,null,null,null,null,null,null,null,null,null,null,null,null,null,null,null,null,36]
["ПУП.04","Музыкальная литература (зарубежная и отечественная)","мг",1246,null,null,null,null,null,35,null,486,null,162,null,324,324,0,null,null,72,24,48,48,null,null,null,90,30,60,60,null,null,null,72,24,48,48,null,null,null,90,30,60,60,null,null,null,72,24,48,48,null,null,null,90,30,60,60,null,null,null,null,null,null,null,null,null,null,null,null,null,null,null,null,null,null,null,null,null,null,null,null,null,null,null,null,null,null,null,null,null,null,null,null,null,null,null,null,null,null,null,null,null,null,null,null,null,null,null,null,null,null,null,null,null,null,null,null,null,null,null,null,null,null,null,null,null,null,null,null,null,324]
[null,"час/нед",null,null,null,null,null,null,null,null,null,null,null,null,null,null,null,null,null,null,22.5,null,{"$f":"(W27+W33+W66)/16","v":15},null,null,null,null,22.4,null,{"$f":"(AD27+AD33+AD66)/20","v":15},null,null,null,null,31.5,null,{"$f":"(AK27+AK33+AK66)/16","v":21},null,null,null,null,31.5,null,{"$f":"(AR27+AR33+AR66)/20","v":21},null,null,null,null,49.5,null,{"$f":"(AY27+AY33+AY66)/16","v":33},null,null,null,null,49.5,null,{"$f":"(BF27+BF33+BF66)/20","v":33},null,null,null,null,54,null,{"$f":"(BM27+BM33+BM66)/16","v":36},null,null,null,null,54,null,{"$f":"(BT27+BT33+BT66)/19","v":36},null,null,null,null,"NaN",null,"NaN",null,null,null,null,"NaN",null,"NaN",null,null,null,null,"NaN",null,"NaN",null,null,null,null,"NaN",null,"NaN",null,null,null,null,"NaN",null,"NaN",null,null,null,null,"NaN",null,"NaN",null,null,null,null,"NaN",null,"NaN",null,null,null,null,"NaN",null,"NaN"]
["ОГСЭ.00","Общий гуманитарный и социально-экономический цикл",null,{"$f":"LEN(D28)+LEN(D29)+LEN(D30)+LEN(D31)+LEN(D32)","v":1},{"$f":"LEN(E28)+LEN(E29)+LEN(E30)+LEN(E31)+LEN(E32)","v":3},{"$f":"LEN(F28)+LEN(F29)+LEN(F30)+LEN(F31)+LEN(F32)","v":3},null,null,null,{"$f":"LEN(J28)+LEN(J29)+LEN(J30)+LEN(J31)+LEN(J32)","v":3},null,{"$f":"SUM(L28:L32)","v":531},{"$f":"SUM(M28:M32)","v":0},177,0,354,200,154,null,null,null,{"$f":"SUM(V28:V32)","v":0},{"$f":"SUM(W28:W32)","v":0},{"$f":"SUM(X28:X32)","v":0},{"$f":"SUM(Y28:Y32)","v":0},null,{"$f":"SUM(AA28:AA32)","v":0},null,{"$f":"SUM(AC28:AC32)","v":0},{"$f":"SUM(AD28:AD32)","v":0},{"$f":"SUM(AE28:AE32)","v":0},{"$f":"SUM(AF28:AF32)","v":0},null,{"$f":"SUM(AH28:AH32)","v":0},59,{"$f":"SUM(AJ28:AJ32)","v":24},{"$f":"SUM(AK28:AK32)","v":48},{"$f":"SUM(AL28:AL32)","v":48},{"$f":"SUM(AM28:AM32)","v":0},null,{"$f":"SUM(AO28:AO32)","v":0},null,{"$f":"SUM(AQ28:AQ32)","v":0},{"$f":"SUM(AR28:AR32)","v":0},{"$f":"SUM(AS28:AS32)","v":0},{"$f":"SUM(AT28:AT32)","v":0},null,{"$f":"SUM(AV28:AV32)","v":0},167,{"$f":"SUM(AX28:AX32)","v":56},{"$f":"SUM(AY28:AY32)","v":112},{"$f":"SUM(AZ28:AZ32)","v":56},{"$f":"SUM(BA28:BA32)","v":56},null,{"$f":"SUM(BC28:BC32)","v":0},108,{"$f":"SUM(BE28:BE32)","v":30},{"$f":"SUM(BF28:BF32)","v":60},{"$f":"SUM(BG28:BG32)","v":0},{"$f":"SUM(BH28:BH32)","v":60},null,{"$f":"SUM(BJ28:BJ32)","v":0},145,{"$f":"SUM(BL28:BL32)","v":48},{"$f":"SUM(BM28:BM32)","v":96},{"$f":"SUM(BN28:BN32)","v":96},{"$f":"SUM(BO28:BO32)","v":0},null,{"$f":"SUM(BQ28:BQ32)","v":0},52,{"$f":"SUM(BS28:BS32)","v":19},{"$f":"SUM(BT28:BT32)","v":38},{"$f":"SUM(BU28:BU32)","v":0},{"$f":"SUM(BV28:BV32)","v":38},null,{"$f":"SUM(BX28:BX32)","v":0},null,null,null,null,null,null,null,null,null,null,null,null,null,null,null,null,null,null,null,null,null,null,null,null,null,null,null,null,null,null,null,null,null,null,null,null,null,null,null,null,null,null,null,null,null,null,null,null,null,null,null,null,null,null,null,null,{"$f":"SUM(EC28:EC32)","v":354},{"$f":"SUM(ED28:ED32)","v":0}]
["ОГСЭ.01","Основы философии","гр",null,null,5,null,null,null,null,null,{"$f":"N28+P28","v":72},null,24,null,{"$f":"W28+AD28+AK28+AR28+AY28+BF28+BM28+BT28","v":48},48,0,null,null,null,null,null,null,null,null,null,null,null,null,null,null,null,null,null,null,null,null,null,null,null,null,null,null,null,null,null,null,59,24,48,48,null,null,null,null,null,null,null,null,null,null,null,null,null,null,null,null,null,null,null,null,null,null,null,null,null,null,null,null,null,null,null,null,null,null,null,null,null,null,null,null,null,null,null,null,null,null,null,null,null,null,null,null,null,null,null,null,null,null,null,null,null,null,null,null,null,null,null,null,null,null,null,null,null,null,null,null,null,null,null,null,48]
["ОГСЭ.02","История","гр",3,null,null,null,null,null,null,null,{"$f":"N29+P29","v":72},null,24,null,48,48,0,null,null,null,null,null,null,null,null,null,null,null,null,null,null,null,null,59,24,48,48,null,null,null,null,null,null,null,null,null,null,null,null,null,null,null,null,null,null,null,null,null,null,null,null,null,null,null,null,null,null,null,null,null,null,null,null,null,null,null,null,null,null,null,null,null,null,null,null,null,null,null,null,null,null,null,null,null,null,null,null,null,null,null,null,null,null,null,null,null,null,null,null,null,null,null,null,null,null,null,null,null,null,null,null,null,null,null,null,null,null,null,null,null,null,48]
["ОГСЭ.03","Психология общения","гр",null,null,7,null,null,null,null,null,{"$f":"N30+P30","v":72},null,24,null,48,48,0,null,null,null,null,null,null,null,null,null,null,null,null,null,null,null,null,null,null,null,null,null,null,null,null,null,null,null,null,null,null,null,null,null,null,null,null,null,null,null,null,null,null,null,null,59,24,48,48,null,null,null,null,null,null,null,null,null,null,null,null,null,null,null,null,null,null,null,null,null,null,null,null,null,null,null,null,null,null,null,null,null,null,null,null,null,null,null,null,null,null,null,null,null,null,null,null,null,null,null,null,null,null,null,null,null,null,null,null,null,null,null,null,null,null,48]
["ОГСЭ.04","Иностранный язык","мг",null,null,8,null,null,null,567,null,{"$f":"N31+P31","v":159},null,{"$f":"V31+AC31+AJ31+AQ31+AX31+BE31+BL31+BS31","v":53},null,106,24,82,null,null,null,null,null,null,null,null,null,null,null,null,null,null,null,null,null,null,null,null,null,null,null,null,null,null,null,null,null,null,44,16,32,8,24,null,null,28,10,20,null,20,null,null,22,8,16,16,null,null,null,52,19,38,null,38,null,null,null,null,null,null,null,null,null,null,null,null,null,null,null,null,null,null,null,null,null,null,null,null,null,null,null,null,null,null,null,null,null,null,null,null,null,null,null,null,null,null,null,null,null,null,null,null,null,null,null,null,null,null,null,null,null,null,106]
["ОГСЭ.05","Физическая культура","гр",null,567,null,null,null,null,null,null,{"$f":"N32+P32","v":156},null,52,null,104,32,72,null,null,null,null,null,null,null,null,null,null,null,null,null,null,null,null,null,null,null,null,null,null,null,null,null,null,null,null,null,null,64,16,32,null,32,null,null,80,20,40,null,40,null,null,64,16,32,32,null,null,null,null,null,null,null,null,null,null,null,null,null,null,null,null,null,null,null,null,null,null,null,null,null,null,null,null,null,null,null,null,null,null,null,null,null,null,null,null,null,null,null,null,null,null,null,null,null,null,null,null,null,null,null,null,null,null,null,null,null,null,null,null,null,null,104]
["П.00","Профессиональный учебный цикл",null,18,1,13,null,null,null,51,null,{"$f":"L34+L43","v":4046},null,{"$f":"N34+N43","v":1340},null,{"$f":"P34+P43","v":2706},{"$f":"Q34+Q43","v":664},{"$f":"R34+R43","v":2042},null,null,null,{"$f":"V34+V43","v":104},{"$f":"W34+W43","v":208},{"$f":"X34+X43","v":0},{"$f":"Y34+Y43","v":208},null,{"$f":"AA34+AA43","v":0},null,{"$f":"AC34+AC43","v":120},{"$f":"AD34+AD43","v":240},{"$f":"AE34+AE43","v":0},{"$f":"AF34+AF43","v":240},null,{"$f":"AH34+AH43","v":0},null,{"$f":"AJ34+AJ43","v":120},{"$f":"AK34+AK43","v":240},{"$f":"AL34+AL43","v":48},{"$f":"AM34+AM43","v":192},null,{"$f":"AO34+AO43","v":0},null,{"$f":"AQ34+AQ43","v":170},{"$f":"AR34+AR43","v":340},{"$f":"AS34+AS43","v":40},{"$f":"AT34+AT43","v":300},null,{"$f":"AV34+AV43","v":0},null,{"$f":"AX34+AX43","v":160},{"$f":"AY34+AY43","v":320},{"$f":"AZ34+AZ43","v":160},{"$f":"BA34+BA43","v":160},null,{"$f":"BC34+BC43","v":0},null,{"$f":"BE34+BE43","v":235},{"$f":"BF34+BF43","v":480},{"$f":"BG34+BG43","v":120},{"$f":"BH34+BH43","v":360},null,{"$f":"BJ34+BJ43","v":0},null,{"$f":"BL34+BL43","v":192},{"$f":"BM34+BM43","v":384},{"$f":"BN34+BN43","v":144},{"$f":"BO34+BO43","v":240},null,{"$f":"BQ34+BQ43","v":0},null,{"$f":"BS34+BS43","v":239},{"$f":"BT34+BT43","v":494},{"$f":"BU34+BU43","v":152},{"$f":"BV34+BV43","v":342},null,{"$f":"BX34+BX43","v":0},null,null,null,null,null,null,null,null,null,null,null,null,null,null,null,null,null,null,null,null,null,null,null,null,null,null,null,null,null,null,null,null,null,null,null,null,null,null,null,null,null,null,null,null,null,null,null,null,null,null,null,null,null,null,null,null,{"$f":"EC34+EC43","v":2130},{"$f":"ED34+ED43","v":576}]
["ОП.00","Общепрофессиональные дисциплины",null,6,0,6,null,null,null,12,null,{"$f":"SUM(L35:L42)","v":1247},0,412,0,835,173,662,null,null,96,{"$f":"SUM(V35:V42)","v":32},{"$f":"SUM(W35:W42)","v":64},{"$f":"SUM(X35:X42)","v":0},{"$f":"SUM(Y35:Y42)","v":64},null,{"$f":"SUM(AA35:AA42)","v":0},null,{"$f":"SUM(AC35:AC42)","v":40},{"$f":"SUM(AD35:AD42)","v":80},{"$f":"SUM(AE35:AE42)","v":0},{"$f":"SUM(AF35:AF42)","v":80},null,{"$f":"SUM(AH35:AH42)","v":0},null,{"$f":"SUM(AJ35:AJ42)","v":32},{"$f":"SUM(AK35:AK42)","v":64},{"$f":"SUM(AL35:AL42)","v":0},{"$f":"SUM(AM35:AM42)","v":64},null,{"$f":"SUM(AO35:AO42)","v":0},null,{"$f":"SUM(AQ35:AQ42)","v":40},{"$f":"SUM(AR35:AR42)","v":80},{"$f":"SUM(AS35:AS42)","v":0},{"$f":"SUM(AT35:AT42)","v":80},null,{"$f":"SUM(AV35:AV42)","v":0},null,{"$f":"SUM(AX35:AX42)","v":40},{"$f":"SUM(AY35:AY42)","v":80},{"$f":"SUM(AZ35:AZ42)","v":16},{"$f":"SUM(BA35:BA42)","v":64},null,{"$f":"SUM(BC35:BC42)","v":0},null,{"$f":"SUM(BE35:BE42)","v":55},{"$f":"SUM(BF35:BF42)","v":120},{"$f":"SUM(BG35:BG42)","v":20},{"$f":"SUM(BH35:BH42)","v":100},null,{"$f":"SUM(BJ35:BJ42)","v":0},null,{"$f":"SUM(BL35:BL42)","v":88},{"$f":"SUM(BM35:BM42)","v":176},{"$f":"SUM(BN35:BN42)","v":80},{"$f":"SUM(BO35:BO42)","v":96},null,{"$f":"SUM(BQ35:BQ42)","v":0},null,{"$f":"SUM(BS35:BS42)","v":85},{"$f":"SUM(BT35:BT42)","v":171},{"$f":"SUM(BU35:BU42)","v":57},{"$f":"SUM(BV35:BV42)","v":114},null,{"$f":"SUM(BX35:BX42)","v":0},null,null,null,null,null,null,null,null,null,null,null,null,null,null,null,null,null,null,null,null,null,null,null,null,null,null,null,null,null,null,null,null,null,null,null,null,null,null,null,null,null,null,null,null,null,null,null,null,null,null,null,null,null,null,null,null,{"$f":"SUM(EC35:EC42)","v":815},{"$f":"SUM(ED35:ED42)","v":20}]
["ОП.01","Музыкальная литература (зарубежная и отечественная)","мг",8,null,null,null,null,null,7,null,{"$f":"N35+P35","v":157},null,{"$f":"V35+AC35+AJ35+AQ35+AX35+BE35+BL35+BS35","v":52},null,{"$f":"W35+AD35+AK35+AR35+AY35+BF35+BM35+BT35","v":105},{"$f":"X35+AE35+AL35+AS35+AZ35+BG35+BN35+BU35","v":105},{"$f":"Y35+AF35+AM35+AT35+BA35+BH35+BO35+BV35","v":0},null,null,null,null,null,null,null,null,null,null,null,null,null,null,null,null,null,null,null,null,null,null,null,null,null,null,null,null,null,null,null,null,null,null,null,null,null,null,null,null,null,null,null,null,72,24,48,48,null,null,null,85,28,57,57,null,null,null,null,null,null,null,null,null,null,null,null,null,null,null,null,null,null,null,null,null,null,null,null,null,null,null,null,null,null,null,null,null,null,null,null,null,null,null,null,null,null,null,null,null,null,null,null,null,null,null,null,null,null,null,null,null,null,null,105]
["ОП.02","Сольфеджио","мг",47,null,28,null,null,null,1356,null,{"$f":"N36+P36","v":429},null,{"$f":"V36+AC36+AJ36+AQ36+AX36+BE36+BL36+BS36","v":143},null,{"$f":"W36+AD36+AK36+AR36+AY36+BF36+BM36+BT36","v":286},{"$f":"X36+AE36+AL36+AS36+AZ36+BG36+BN36+BU36","v":0},{"$f":"Y36+AF36+AM36+AT36+BA36+BH36+BO36+BV36","v":286},null,null,48,16,32,null,32,null,null,60,20,40,null,40,null,null,48,16,32,null,32,null,null,60,20,40,null,40,null,null,48,16,32,null,32,null,null,60,20,40,null,40,null,null,48,16,32,null,32,null,null,null,19,38,null,38,null,null,null,null,null,null,null,null,null,null,null,null,null,null,null,null,null,null,null,null,null,null,null,null,null,null,null,null,null,null,null,null,null,null,null,null,null,null,null,null,null,null,null,null,null,null,null,null,null,null,null,null,null,null,null,null,null,null,286]
[null,"Сольфеджио индивидуальное","мг",null,null,null,null,null,null,6,null,25,null,5,null,20,0,20,null,null,48,null,null,null,null,null,null,60,null,null,null,null,null,null,48,null,null,null,null,null,null,60,null,null,null,null,null,null,48,null,null,null,null,null,null,60,5,20,null,20,null,null,48,null,null,null,null,null,null,null,null,null,null,null,null,null,null,null,null,null,null,null,null,null,null,null,null,null,null,null,null,null,null,null,null,null,null,null,null,null,null,null,null,null,null,null,null,null,null,null,null,null,null,null,null,null,null,null,null,null,null,null,null,null,null,null,null,null,null,null,null,null,null,20]
["ОП.03","Элементарная теория музыки","мг",2,null,1,null,null,null,null,null,108,null,36,null,72,0,72,null,null,48,16,32,null,32,null,null,60,20,40,null,40,null,null,null,null,null,null,null,null,null,null,null,null,null,null,null,null,null,null,null,null,null,null,null,null,null,null,null,null,null,null,null,null,null,null,null,null,null,null,null,null,null,null,null,null,null,null,null,null,null,null,null,null,null,null,null,null,null,null,null,null,null,null,null,null,null,null,null,null,null,null,null,null,null,null,null,null,null,null,null,null,null,null,null,null,null,null,null,null,null,null,null,null,null,null,null,null,null,null,null,null,72]
["ОП.04","Гармония","мг",57,null,null,null,null,null,346,null,264,null,88,null,176,0,176,null,null,null,null,null,null,null,null,null,null,null,null,null,null,null,null,48,16,32,null,32,null,null,60,20,40,null,40,null,null,48,16,32,null,32,null,null,60,20,40,null,40,null,null,48,16,32,null,32,null,null,null,null,null,null,null,null,null,null,null,null,null,null,null,null,null,null,null,null,null,null,null,null,null,null,null,null,null,null,null,null,null,null,null,null,null,null,null,null,null,null,null,null,null,null,null,null,null,null,null,null,null,null,null,null,null,null,null,null,null,null,null,null,null,176]
["ОП.05","Анализ музыкальных произведений","мг",null,null,8,null,null,null,null,null,57,null,19,null,38,0,38,null,null,null,null,null,null,null,null,null,null,null,null,null,null,null,null,null,null,null,null,null,null,null,null,null,null,null,null,null,null,null,null,null,null,null,null,null,null,null,null,null,null,null,null,48,null,null,null,null,null,null,57,19,38,null,38,null,null,null,null,null,null,null,null,null,null,null,null,null,null,null,null,null,null,null,null,null,null,null,null,null,null,null,null,null,null,null,null,null,null,null,null,null,null,null,null,null,null,null,null,null,null,null,null,null,null,null,null,null,null,null,null,null,null,38]
["ОП.06","Музыкальная информатика","мг",null,null,8,null,null,null,7,null,105,null,35,null,70,0,70,null,null,null,null,null,null,null,null,null,null,null,null,null,null,null,null,null,null,null,null,null,null,null,null,null,null,null,null,null,null,null,null,null,null,null,null,null,null,null,null,null,null,null,null,null,16,32,null,32,null,null,114,19,38,null,38,null,null,null,null,null,null,null,null,null,null,null,null,null,null,null,null,null,null,null,null,null,null,null,null,null,null,null,null,null,null,null,null,null,null,null,null,null,null,null,null,null,null,null,null,null,null,null,null,null,null,null,null,null,null,null,null,null,null,70]
["ОП.07","Безопасность жизнедеятельности","гр",null,null,7,null,null,null,56,null,102,null,34,null,68,68,0,null,null,null,null,null,null,null,null,null,null,null,null,null,null,null,null,null,null,null,null,null,null,null,null,null,null,null,null,null,null,24,8,16,16,null,null,null,30,10,20,20,null,null,null,48,16,32,32,null,null,null,null,null,null,null,null,null,null,null,null,null,null,null,null,null,null,null,null,null,null,null,null,null,null,null,null,null,null,null,null,null,null,null,null,null,null,null,null,null,null,null,null,null,null,null,null,null,null,null,null,null,null,null,null,null,null,null,null,null,null,null,null,null,null,68]
["ПМ.00","Профессиональные модули",null,{"$f":"D44+D56","v":12},{"$f":"E44+E56","v":1},9,null,null,null,39,null,{"$f":"L44+L56","v":2799},null,{"$f":"N44+N56","v":928},null,{"$f":"P44+P56","v":1871},{"$f":"Q44+Q56","v":491},{"$f":"R44+R56","v":1380},null,null,264,{"$f":"V44+V56","v":72},{"$f":"W44+W56","v":144},{"$f":"X44+X56","v":0},{"$f":"Y44+Y56","v":144},null,{"$f":"AA44+AA56","v":0},null,{"$f":"AC44+AC56","v":80},{"$f":"AD44+AD56","v":160},{"$f":"AE44+AE56","v":0},{"$f":"AF44+AF56","v":160},null,{"$f":"AH44+AH56","v":0},null,{"$f":"AJ44+AJ56","v":88},{"$f":"AK44+AK56","v":176},{"$f":"AL44+AL56","v":48},{"$f":"AM44+AM56","v":128},null,{"$f":"AO44+AO56","v":0},null,{"$f":"AQ44+AQ56","v":130},{"$f":"AR44+AR56","v":260},{"$f":"AS44+AS56","v":40},{"$f":"AT44+AT56","v":220},null,{"$f":"AV44+AV56","v":0},null,{"$f":"AX44+AX56","v":120},{"$f":"AY44+AY56","v":240},{"$f":"AZ44+AZ56","v":144},{"$f":"BA44+BA56","v":96},null,{"$f":"BC44+BC56","v":0},null,{"$f":"BE44+BE56","v":180},{"$f":"BF44+BF56","v":360},{"$f":"BG44+BG56","v":100},{"$f":"BH44+BH56","v":260},null,{"$f":"BJ44+BJ56","v":0},null,{"$f":"BL44+BL56","v":104},{"$f":"BM44+BM56","v":208},{"$f":"BN44+BN56","v":64},{"$f":"BO44+BO56","v":144},null,{"$f":"BQ44+BQ56","v":0},null,{"$f":"BS44+BS56","v":154},{"$f":"BT44+BT56","v":323},{"$f":"BU44+BU56","v":95},{"$f":"BV44+BV56","v":228},null,{"$f":"BX44+BX56","v":0},null,null,null,null,null,null,null,null,null,null,null,null,null,null,null,null,null,null,null,null,null,null,null,null,null,null,null,null,null,null,null,null,null,null,null,null,null,null,null,null,null,null,null,null,null,null,null,null,null,null,null,null,null,null,null,null,{"$f":"EC44+EC56","v":1315},{"$f":"ED44+ED56","v":556}]
["ПМ.01","Исполнительская деятельность",null,{"$f":"LEN(D45)+LEN(D46)+LEN(D48)+LEN(D49)+LEN(D50)+LEN(D51)+LEN(D52)+LEN(D53)+LEN(D54)+LEN(D55)","v":10},{"$f":"LEN(E45)+LEN(E46)+LEN(E48)+LEN(E49)+LEN(E50)+LEN(E51)+LEN(E52)+LEN(E53)+LEN(E54)+LEN(E55)","v":0},7,null,null,null,28,null,{"$f":"SUM(L45:M55)","v":2051},{"$f":"SUM(M45:N55)","v":679},{"$f":"SUM(N45:O55)","v":679},{"$f":"SUM(O45:P55)","v":1372},{"$f":"SUM(P45:P55)","v":1372},{"$f":"SUM(Q45:Q55)","v":70},{"$f":"SUM(R45:S55)","v":1302},null,null,113,{"$f":"SUM(V45:V55)","v":72},{"$f":"SUM(W45:W55)","v":144},{"$f":"SUM(X45:X55)","v":0},{"$f":"SUM(Y45:Y55)","v":144},null,{"$f":"SUM(AA45:AA55)","v":0},null,{"$f":"SUM(AC45:AC55)","v":80},{"$f":"SUM(AD45:AD55)","v":160},{"$f":"SUM(AE45:AE55)","v":0},{"$f":"SUM(AF45:AF55)","v":160},null,{"$f":"SUM(AH45:AH55)","v":0},null,{"$f":"SUM(AJ45:AJ55)","v":64},{"$f":"SUM(AK45:AK55)","v":128},{"$f":"SUM(AL45:AL55)","v":0},{"$f":"SUM(AM45:AM55)","v":128},null,{"$f":"SUM(AO45:AO55)","v":0},null,{"$f":"SUM(AQ45:AQ55)","v":100},{"$f":"SUM(AR45:AR55)","v":200},{"$f":"SUM(AS45:AS55)","v":0},{"$f":"SUM(AT45:AT55)","v":200},null,{"$f":"SUM(AV45:AV55)","v":0},null,{"$f":"SUM(AX45:AX55)","v":64},{"$f":"SUM(AY45:AY55)","v":128},{"$f":"SUM(AZ45:AZ55)","v":32},{"$f":"SUM(BA45:BA55)","v":96},null,{"$f":"SUM(BC45:BC55)","v":0},null,{"$f":"SUM(BE45:BE55)","v":120},{"$f":"SUM(BF45:BF55)","v":240},{"$f":"SUM(BG45:BG55)","v":0},{"$f":"SUM(BH45:BH55)","v":240},null,{"$f":"SUM(BJ45:BJ55)","v":0},null,{"$f":"SUM(BL45:BL55)","v":72},{"$f":"SUM(BM45:BM55)","v":144},{"$f":"SUM(BN45:BN55)","v":0},{"$f":"SUM(BO45:BO55)","v":144},null,{"$f":"SUM(BQ45:BQ55)","v":0},null,{"$f":"SUM(BS45:BS55)","v":107},{"$f":"SUM(BT45:BT55)","v":228},{"$f":"SUM(BU45:BU55)","v":38},{"$f":"SUM(BV45:BV55)","v":190},null,{"$f":"SUM(BX45:BX55)","v":0},null,null,null,null,null,null,null,null,null,null,null,null,null,null,null,null,null,null,null,null,null,null,null,null,null,null,null,null,null,null,null,null,null,null,null,null,null,null,null,null,null,null,null,null,null,null,null,null,null,null,null,null,null,null,null,null,{"$f":"SUM(EC45:EC55)","v":875},{"$f":"SUM(ED45:ED55)","v":497}]
["МДК.01.01.","Специальный инструмент","инд",23456,null,1,null,null,null,78,null,{"$f":"N45+P45","v":703},null,{"$f":"V45+AC45+AJ45+AQ45+AX45+BE45+BL45+BS45","v":234},null,{"$f":"W45+AD45+AK45+AR45+AY45+BF45+BM45+BT45","v":469},{"$f":"X45+AE45+AL45+AS45+AZ45+BG45+BN45+BU45","v":0},{"$f":"Y45+AF45+AM45+AT45+BA45+BH45+BO45+BV45","v":469},null,null,77,24,48,null,48,null,null,95,30,60,null,60,null,null,77,24,48,null,48,null,null,95,40,80,null,80,null,null,77,24,48,null,48,null,null,93,40,80,null,80,null,null,77,24,48,null,48,null,null,91,28,57,null,57,null,null,null,null,null,null,null,null,null,null,null,null,null,null,null,null,null,null,null,null,null,null,null,null,null,null,null,null,null,null,null,null,null,null,null,null,null,null,null,null,null,null,null,null,null,null,null,null,null,null,null,null,null,null,null,null,null,null,429,40]
["МДК.01.02.","Ансамблевое исполнительство","мг",6,null,8,null,null,null,57,null,{"$f":"N46+P46","v":136},null,{"$f":"V46+AC46+AJ46+AQ46+AX46+BE46+BL46+BS46","v":45},null,{"$f":"W46+AD46+AK46+AR46+AY46+BF46+BM46+BT46","v":91},{"$f":"X46+AE46+AL46+AS46+AZ46+BG46+BN46+BU46","v":0},{"$f":"Y46+AF46+AM46+AT46+BA46+BH46+BO46+BV46","v":91},null,null,null,null,null,null,null,null,null,null,null,null,null,null,null,null,null,null,null,null,null,null,null,null,null,null,null,null,null,null,24,8,16,null,16,null,null,30,20,40,null,40,null,null,24,8,16,null,16,null,null,29,9,19,null,19,null,null,null,null,null,null,null,null,null,null,null,null,null,null,null,null,null,null,null,null,null,null,null,null,null,null,null,null,null,null,null,null,null,null,null,null,null,null,null,null,null,null,null,null,null,null,null,null,null,null,null,null,null,null,null,null,null,null,71,20]
[null,"Оркестр","гр",null,null,24,null,null,null,1378,null,{"$f":"N47+P47","v":423},null,{"$f":"V47+AC47+AJ47+AQ47+AX47+BE47+BL47+BS47","v":141},null,{"$f":"W47+AD47+AK47+AR47+AY47+BF47+BM47+BT47","v":282},{"$f":"X47+AE47+AL47+AS47+AZ47+BG47+BN47+BU47","v":0},{"$f":"Y47+AF47+AM47+AT47+BA47+BH47+BO47+BV47","v":282},null,null,92,32,64,null,64,null,null,109,30,60,null,60,null,null,54,24,48,null,48,null,null,56,20,40,null,40,null,null,44,null,null,null,null,null,null,42,null,null,null,null,null,null,42,16,32,null,32,null,null,63,19,38,null,38,null,null,null,null,null,null,null,null,null,null,null,null,null,null,null,null,null,null,null,null,null,null,null,null,null,null,null,null,null,null,null,null,null,null,null,null,null,null,null,null,null,null,null,null,null,null,null,null,null,null,null,null,null,null,null,null,null,null,null,282]
["МДК.01.03.","Концертмейстерский класс","инд",null,null,6,null,null,null,348,null,112,null,37,null,75,0,75,null,null,null,null,null,null,null,null,null,null,null,null,null,null,null,null,24,8,16,null,16,null,null,30,10,20,null,20,null,null,null,null,null,null,null,null,null,30,10,20,null,20,null,null,null,null,null,null,null,null,null,27,9,19,null,19,null,null,null,null,null,null,null,null,null,null,null,null,null,null,null,null,null,null,null,null,null,null,null,null,null,null,null,null,null,null,null,null,null,null,null,null,null,null,null,null,null,null,null,null,null,null,null,null,null,null,null,null,null,null,null,null,null,null,36,39]
["МДК.01.04.","Дополнительный инструмент-фортепиано","инд",57,null,1,null,null,null,2346,null,186,null,62,null,124,0,124,null,null,24,8,16,null,16,null,null,30,10,20,null,20,null,null,24,8,16,null,16,null,null,30,10,20,null,20,null,null,24,8,16,null,16,null,null,30,10,20,null,20,null,null,24,8,16,null,16,null,null,null,null,null,null,null,null,null,null,null,null,null,null,null,null,null,null,null,null,null,null,null,null,null,null,null,null,null,null,null,null,null,null,null,null,null,null,null,null,null,null,null,null,null,null,null,null,null,null,null,null,null,null,null,null,null,null,null,null,null,null,null,null,null,124]
["МДК.01.05","Дирижирование, чтение оркестровых партитур: дирижирование","инд",8,null,6,null,null,null,57,null,106,null,35,null,71,0,71,null,null,null,null,null,null,null,null,null,null,null,null,null,null,null,null,null,null,null,null,null,null,null,30,null,null,null,null,null,null,24,8,16,null,16,null,null,30,10,20,null,20,null,null,24,8,16,null,16,null,null,27,9,19,null,19,null,null,null,null,null,null,null,null,null,null,null,null,null,null,null,null,null,null,null,null,null,null,null,null,null,null,null,null,null,null,null,null,null,null,null,null,null,null,null,null,null,null,null,null,null,null,null,null,null,null,null,null,null,null,null,null,null,null,71]
[null,"Дирижирование, чтение оркестровых партитур: чтение оркестровых партитур","инд",null,null,null,null,null,null,78,null,48,null,13,null,35,0,35,null,null,null,null,null,null,null,null,null,null,null,null,null,null,null,null,null,null,null,null,null,null,null,30,null,null,null,null,null,null,24,null,null,null,null,null,null,30,null,null,null,null,null,null,24,8,16,null,16,null,null,27,5,19,null,19,null,null,null,null,null,null,null,null,null,null,null,null,null,null,null,null,null,null,null,null,null,null,null,null,null,null,null,null,null,null,null,null,null,null,null,null,null,null,null,null,null,null,null,null,null,null,null,null,null,null,null,null,null,null,null,null,null,null,35]
["МДК.01.06.","История исполнительского искусства, инструментоведение, изучение родственных инструментов: история исполнительского искусства","мг",8,null,null,null,null,null,5,null,105,null,35,null,70,70,0,null,null,null,null,null,null,null,null,null,null,null,null,null,null,null,null,null,null,null,null,null,null,null,null,null,null,null,null,null,null,null,16,32,32,null,null,null,null,null,null,null,null,null,null,null,null,null,null,null,null,null,57,19,38,38,null,null,null,null,null,null,null,null,null,null,null,null,null,null,null,null,null,null,null,null,null,null,null,null,null,null,null,null,null,null,null,null,null,null,null,null,null,null,null,null,null,null,null,null,null,null,null,null,null,null,null,null,null,null,null,null,null,null,null,70]
[null,"Инструментоведение","инд",null,null,null,null,null,null,68,null,58,null,19,null,39,0,39,null,null,null,null,null,null,null,null,null,null,null,null,null,null,null,null,null,null,null,null,null,null,null,null,null,null,null,null,null,null,null,null,null,null,null,null,null,null,10,20,null,20,null,null,null,null,null,null,null,null,null,27,9,19,null,19,null,null,null,null,null,null,null,null,null,null,null,null,null,null,null,null,null,null,null,null,null,null,null,null,null,null,null,null,null,null,null,null,null,null,null,null,null,null,null,null,null,null,null,null,null,null,null,null,null,null,null,null,null,null,null,null,null,null,39]
[null,"Изучение родственных инструментов","инд",null,null,null,null,null,null,1246,null,114,null,38,null,76,0,76,null,null,null,8,16,null,16,null,null,null,10,20,null,20,null,null,null,null,null,null,null,null,null,null,10,20,null,20,null,null,null,null,null,null,null,null,null,null,10,20,null,20,null,null,null,null,null,null,null,null,null,27,null,null,null,null,null,null,null,null,null,null,null,null,null,null,null,null,null,null,null,null,null,null,null,null,null,null,null,null,null,null,null,null,null,null,null,null,null,null,null,null,null,null,null,null,null,null,null,null,null,null,null,null,null,null,null,null,null,null,null,null,null,null,null,76]
[null,"Инструментовка","инд",null,null,null,null,null,null,46,null,{"$f":"N55+P55","v":60},null,{"$f":"V55+AC55+AJ55+AQ55+AX55+BE55+BL55+BS55","v":20},null,{"$f":"W55+AD55+AK55+AR55+AY55+BF55+BM55+BT55","v":40},{"$f":"X55+AE55+AL55+AS55+AZ55+BG55+BN55+BU55","v":0},{"$f":"Y55+AF55+AM55+AT55+BA55+BH55+BO55+BV55","v":40},null,null,null,null,null,null,null,null,null,null,null,null,null,null,null,null,null,null,null,null,null,null,null,null,10,20,null,20,null,null,null,null,null,null,null,null,null,28,10,20,null,20,null,null,24,null,null,null,null,null,null,null,null,null,null,null,null,null,null,null,null,null,null,null,null,null,null,null,null,null,null,null,null,null,null,null,null,null,null,null,null,null,null,null,null,null,null,null,null,null,null,null,null,null,null,null,null,null,null,null,null,null,null,null,null,null,null,null,null,null,null,null,null,null,null,40]
["ПМ.02","Педагогичесская деятельность",null,{"$f":"LEN(D57)+LEN(D58)+LEN(D59)+LEN(D60)+LEN(D61)+LEN(D62)+LEN(D63)+LEN(D64)+LEN(D65)","v":2},{"$f":"LEN(E57)+LEN(E58)+LEN(E59)+LEN(E60)+LEN(E61)+LEN(E62)+LEN(E63)+LEN(E64)+LEN(E65)","v":1},{"$f":"LEN(F57)+LEN(F58)+LEN(F59)+LEN(F60)+LEN(F61)+LEN(F62)+LEN(F63)+LEN(F64)+LEN(F65)","v":2},null,null,null,{"$f":"LEN(J57)+LEN(J58)+LEN(J59)+LEN(J60)+LEN(J61)+LEN(J62)+LEN(J63)+LEN(J64)+LEN(J65)","v":11},null,{"$f":"SUM(L57:L65)","v":748},{"$f":"SUM(M57:M65)","v":0},249,0,499,421,78,null,null,null,{"$f":"SUM(V57:V65)","v":0},{"$f":"SUM(W57:W65)","v":0},{"$f":"SUM(X57:X65)","v":0},{"$f":"SUM(Y57:Y65)","v":0},null,{"$f":"SUM(AA57:AA65)","v":0},null,{"$f":"SUM(AC57:AC65)","v":0},{"$f":"SUM(AD57:AD65)","v":0},{"$f":"SUM(AE57:AE65)","v":0},{"$f":"SUM(AF57:AF65)","v":0},null,{"$f":"SUM(AH57:AH65)","v":0},72,{"$f":"SUM(AJ57:AJ65)","v":24},{"$f":"SUM(AK57:AK65)","v":48},{"$f":"SUM(AL57:AL65)","v":48},{"$f":"SUM(AM57:AM65)","v":0},null,{"$f":"SUM(AO57:AO65)","v":0},null,{"$f":"SUM(AQ57:AQ65)","v":30},{"$f":"SUM(AR57:AR65)","v":60},{"$f":"SUM(AS57:AS65)","v":40},{"$f":"SUM(AT57:AT65)","v":20},null,{"$f":"SUM(AV57:AV65)","v":0},null,{"$f":"SUM(AX57:AX65)","v":56},{"$f":"SUM(AY57:AY65)","v":112},{"$f":"SUM(AZ57:AZ65)","v":112},{"$f":"SUM(BA57:BA65)","v":0},null,{"$f":"SUM(BC57:BC65)","v":0},null,{"$f":"SUM(BE57:BE65)","v":60},{"$f":"SUM(BF57:BF65)","v":120},{"$f":"SUM(BG57:BG65)","v":100},{"$f":"SUM(BH57:BH65)","v":20},null,{"$f":"SUM(BJ57:BJ65)","v":0},null,{"$f":"SUM(BL57:BL65)","v":32},{"$f":"SUM(BM57:BM65)","v":64},{"$f":"SUM(BN57:BN65)","v":64},{"$f":"SUM(BO57:BO65)","v":0},null,{"$f":"SUM(BQ57:BQ65)","v":0},null,{"$f":"SUM(BS57:BS65)","v":47},{"$f":"SUM(BT57:BT65)","v":95},{"$f":"SUM(BU57:BU65)","v":57},{"$f":"SUM(BV57:BV65)","v":38},null,{"$f":"SUM(BX57:BX65)","v":0},null,null,null,null,null,null,null,null,null,null,null,null,null,null,null,null,null,null,null,null,null,null,null,null,null,null,null,null,null,null,null,null,null,null,null,null,null,null,null,null,null,null,null,null,null,null,null,null,null,null,null,null,null,null,null,null,{"$f":"SUM(EC57:EC65)","v":440},{"$f":"SUM(ED57:ED65)","v":59}]
["МДК.02.01.","Педагогические основы преподавания творческих дисциплин: основы педагогики","гр",null,null,null,null,null,null,34,null,{"$f":"N57+P57","v":108},null,{"$f":"V57+AC57+AJ57+AQ57+AX57+BE57+BL57+BS57","v":36},null,{"$f":"W57+AD57+AK57+AR57+AY57+BF57+BM57+BT57","v":72},{"$f":"X57+AE57+AL57+AS57+AZ57+BG57+BN57+BU57","v":72},{"$f":"Y57+AF57+AM57+AT57+BA57+BH57+BO57+BV57","v":0},null,null,null,null,null,null,null,null,null,null,null,null,null,null,null,null,48,16,32,32,null,null,null,60,20,40,40,null,null,null,null,null,null,null,null,null,null,null,null,null,null,null,null,null,null,null,null,null,null,null,null,null,null,null,null,null,null,null,null,null,null,null,null,null,null,null,null,null,null,null,null,null,null,null,null,null,null,null,null,null,null,null,null,null,null,null,null,null,null,null,null,null,null,null,null,null,null,null,null,null,null,null,null,null,null,null,null,null,null,null,null,null,null,null,72]
[null,"Педагогические основы преподавания творческих дисциплин: основы системы музыкального образования","гр",6,null,null,null,null,null,5,null,{"$f":"N58+P58","v":108},null,{"$f":"V58+AC58+AJ58+AQ58+AX58+BE58+BL58+BS58","v":36},null,{"$f":"W58+AD58+AK58+AR58+AY58+BF58+BM58+BT58","v":72},{"$f":"X58+AE58+AL58+AS58+AZ58+BG58+BN58+BU58","v":72},{"$f":"Y58+AF58+AM58+AT58+BA58+BH58+BO58+BV58","v":0},null,null,null,null,null,null,null,null,null,null,null,null,null,null,null,null,null,null,null,null,null,null,null,null,null,null,null,null,null,null,48,16,32,32,null,null,null,60,20,40,40,null,null,null,null,null,null,null,null,null,null,null,null,null,null,null,null,null,null,null,null,null,null,null,null,null,null,null,null,null,null,null,null,null,null,null,null,null,null,null,null,null,null,null,null,null,null,null,null,null,null,null,null,null,null,null,null,null,null,null,null,null,null,null,null,null,null,null,null,null,null,null,null,null,72]
[null,"Педагогические основы преподавания творческих дисциплин: возрастная психология","р",null,null,null,null,null,null,56,null,54,null,18,null,36,36,0,null,null,null,null,null,null,null,null,null,null,null,null,null,null,null,null,null,null,null,null,null,null,null,null,null,null,null,null,null,null,24,8,16,16,null,null,null,30,10,20,20,null,null,null,null,null,null,null,null,null,null,null,null,null,null,null,null,null,null,null,null,null,null,null,null,null,null,null,null,null,null,null,null,null,null,null,null,null,null,null,null,null,null,null,null,null,null,null,null,null,null,null,null,null,null,null,null,null,null,null,null,null,null,null,null,null,null,null,null,null,null,null,null,null,36]
[null,"Педагогические основы преподавания творческих ди сциплин: основы организации учебного процесса","гр",null,null,null,null,null,null,7,null,48,null,16,null,32,32,0,null,null,null,null,null,null,null,null,null,null,null,null,null,null,null,null,null,null,null,null,null,null,null,null,null,null,null,null,null,null,null,null,null,null,null,null,null,null,null,null,null,null,null,null,24,16,32,32,null,null,null,27,null,null,null,null,null,null,null,null,null,null,null,null,null,null,null,null,null,null,null,null,null,null,null,null,null,null,null,null,null,null,null,null,null,null,null,null,null,null,null,null,null,null,null,null,null,null,null,null,null,null,null,null,null,null,null,null,null,null,null,null,null,null,32]
[null,"Педагогические основы преподавания творческих дисциплин: основы психологии музыкального восприятия","гр",null,null,8,null,null,null,null,null,57,null,19,null,38,38,0,null,null,null,null,null,null,null,null,null,null,null,null,null,null,null,null,null,null,null,null,null,null,null,null,null,null,null,null,null,null,null,null,null,null,null,null,null,null,null,null,null,null,null,null,null,null,null,null,null,null,null,57,19,38,38,null,null,null,null,null,null,null,null,null,null,null,null,null,null,null,null,null,null,null,null,null,null,null,null,null,null,null,null,null,null,null,null,null,null,null,null,null,null,null,null,null,null,null,null,null,null,null,null,null,null,null,null,null,null,null,null,null,null,null,38]
[null,"Изучение репертуара ДШИ","инд",null,null,null,null,null,null,46,null,60,null,20,null,40,0,40,null,null,24,null,null,null,null,null,null,30,null,null,null,null,null,null,null,null,null,null,null,null,null,null,10,20,null,20,null,null,null,null,null,null,null,null,null,null,10,20,null,20,null,null,null,null,null,null,null,null,null,null,null,null,null,null,null,null,null,null,null,null,null,null,null,null,null,null,null,null,null,null,null,null,null,null,null,null,null,null,null,null,null,null,null,null,null,null,null,null,null,null,null,null,null,null,null,null,null,null,null,null,null,null,null,null,null,null,null,null,null,null,null,null,null,40]
["МДК.02.02.","Учебно-методическое обеспечение учебного процесса: методика обучения игре на инструменте","мг",null,null,6,null,null,null,58,null,184,null,61,null,123,123,0,null,null,null,null,null,null,null,null,null,null,null,null,null,null,null,null,null,null,null,null,null,null,null,30,null,null,null,null,null,null,72,32,64,64,null,null,null,60,20,40,40,null,null,null,null,null,null,null,null,null,null,null,9,19,19,null,null,null,null,null,null,null,null,null,null,null,null,null,null,null,null,null,null,null,null,null,null,null,null,null,null,null,null,null,null,null,null,null,null,null,null,null,null,null,null,null,null,null,null,null,null,null,null,null,null,null,null,null,null,null,null,null,null,null,104,19]
[null,"Учебно- методическое обеспечение учебного процесса: физическая культура (ритмика)","гр",null,8,null,null,null,null,null,null,57,null,19,null,38,0,38,null,null,null,null,null,null,null,null,null,null,null,null,null,null,null,null,null,null,null,null,null,null,null,null,null,null,null,null,null,null,null,null,null,null,null,null,null,null,null,null,null,null,null,null,null,null,null,null,null,null,null,57,19,38,null,38,null,null,null,null,null,null,null,null,null,null,null,null,null,null,null,null,null,null,null,null,null,null,null,null,null,null,null,null,null,null,null,null,null,null,null,null,null,null,null,null,null,null,null,null,null,null,null,null,null,null,null,null,null,null,null,null,null,null,38]
[null,"Учебно-методическое обеспечение учебного процесса: изучение методической литературы по вопросам педагогики и методики","мг",7,null,null,null,null,null,3,null,72,null,24,null,48,48,0,null,null,null,null,null,null,null,null,null,null,null,null,null,null,null,null,24,8,16,16,null,null,null,null,null,null,null,null,null,null,null,null,null,null,null,null,null,null,null,null,null,null,null,null,48,16,32,32,null,null,null,null,null,null,null,null,null,null,null,null,null,null,null,null,null,null,null,null,null,null,null,null,null,null,null,null,null,null,null,null,null,null,null,null,null,null,null,null,null,null,null,null,null,null,null,null,null,null,null,null,null,null,null,null,null,null,null,null,null,null,null,null,null,null,48]
["УП","Учебная практика",null,{"$f":"LEN(D67)+LEN(D47)+LEN(D68)+LEN(D69)","v":0},{"$f":"LEN(E67)+LEN(E47)+LEN(E68)+LEN(E69)","v":0},"0",null,null,null,11,null,{"$f":"SUM(L67:L69)","v":1026},0,342,0,684,0,684,null,null,null,{"$f":"SUM(V67:V69)","v":16},{"$f":"SUM(W67:W69)","v":32},{"$f":"SUM(X67:X69)","v":0},{"$f":"SUM(Y67:Y69)","v":32},null,{"$f":"SUM(AA67:AA69)","v":0},null,{"$f":"SUM(AC67:AC69)","v":30},{"$f":"SUM(AD67:AD69)","v":60},{"$f":"SUM(AE67:AE69)","v":0},{"$f":"SUM(AF67:AF69)","v":60},null,{"$f":"SUM(AH67:AH69)","v":0},null,{"$f":"SUM(AJ67:AJ69)","v":24},{"$f":"SUM(AK67:AK69)","v":48},{"$f":"SUM(AL67:AL69)","v":0},{"$f":"SUM(AM67:AM69)","v":48},null,{"$f":"SUM(AO67:AO69)","v":0},null,{"$f":"SUM(AQ67:AQ69)","v":40},{"$f":"SUM(AR67:AR69)","v":80},{"$f":"SUM(AS67:AS69)","v":0},{"$f":"SUM(AT67:AT69)","v":80},null,{"$f":"SUM(AV67:AV69)","v":0},null,{"$f":"SUM(AX67:AX69)","v":48},{"$f":"SUM(AY67:AY69)","v":96},{"$f":"SUM(AZ67:AZ69)","v":0},{"$f":"SUM(BA67:BA69)","v":96},null,{"$f":"SUM(BC67:BC69)","v":0},null,{"$f":"SUM(BE67:BE69)","v":60},{"$f":"SUM(BF67:BF69)","v":120},{"$f":"SUM(BG67:BG69)","v":0},{"$f":"SUM(BH67:BH69)","v":120},null,{"$f":"SUM(BJ67:BJ69)","v":0},null,{"$f":"SUM(BL67:BL69)","v":48},{"$f":"SUM(BM67:BM69)","v":96},{"$f":"SUM(BN67:BN69)","v":0},{"$f":"SUM(BO67:BO69)","v":96},null,{"$f":"SUM(BQ67:BQ69)","v":0},null,{"$f":"SUM(BS67:BS69)","v":76},{"$f":"SUM(BT67:BT69)","v":152},{"$f":"SUM(BU67:BU69)","v":0},{"$f":"SUM(BV67:BV69)","v":152},null,{"$f":"SUM(BX67:BX69)","v":0},null,null,null,null,null,null,null,null,null,null,null,null,null,null,null,null,null,null,null,null,null,null,null,null,null,null,null,null,null,null,null,null,null,null,null,null,null,null,null,null,null,null,null,null,null,null,null,null,null,null,null,null,null,null,null,null,{"$f":"SUM(EC67:EC69)","v":684},{"$f":"SUM(ED67:ED69)","v":0}]
["УП 01","Оркестр","гр",null,null,null,null,null,null,12345678,null,{"$f":"N67+P67","v":864},null,{"$f":"V67+AC67+AJ67+AQ67+AX67+BE67+BL67+BS67","v":288},null,{"$f":"W67+AD67+AK67+AR67+AY67+BF67+BM67+BT67","v":576},0,576,null,null,null,16,32,null,32,null,null,null,30,60,null,60,null,null,null,24,48,null,48,null,null,null,40,80,null,80,null,null,null,48,96,null,96,null,null,null,60,120,null,120,null,null,null,32,64,null,64,null,null,null,38,76,null,76,null,null,null,null,null,null,null,null,null,null,null,null,null,null,null,null,null,null,null,null,null,null,null,null,null,null,null,null,null,null,null,null,null,null,null,null,null,null,null,null,null,null,null,null,null,null,null,null,null,null,null,null,null,null,null,null,null,null,576]
["УП.02","Концертмейстерская подготовка","инд",null,null,null,null,null,null,8,null,{"$f":"N68+P68","v":57},null,{"$f":"V68+AC68+AJ68+AQ68+AX68+BE68+BL68+BS68","v":19},null,38,0,38,null,null,null,null,null,null,null,null,null,null,null,null,null,null,null,null,null,null,null,null,null,null,null,null,null,null,null,null,null,null,null,null,null,null,null,null,null,30,null,null,null,null,null,null,null,null,null,null,null,null,null,30,19,38,null,38,null,null,null,null,null,null,null,null,null,null,null,null,null,null,null,null,null,null,null,null,null,null,null,null,null,null,null,null,null,null,null,null,null,null,null,null,null,null,null,null,null,null,null,null,null,null,null,null,null,null,null,null,null,null,null,null,null,null,38]
["УП.03","Учебная практика по педагогической работе","инд",null,null,null,null,null,null,78,null,{"$f":"N69+P69","v":105},null,{"$f":"V69+AC69+AJ69+AQ69+AX69+BE69+BL69+BS69","v":35},null,70,0,70,null,null,null,null,null,null,null,null,null,null,null,null,null,null,null,null,null,null,null,null,null,null,null,null,null,null,null,null,null,null,48,null,null,null,null,null,null,60,null,null,null,null,null,null,48,16,32,null,32,null,null,57,19,38,null,38,null,null,null,null,null,null,null,null,null,null,null,null,null,null,null,null,null,null,null,null,null,null,null,null,null,null,null,null,null,null,null,null,null,null,null,null,null,null,null,null,null,null,null,null,null,null,null,null,null,null,null,null,null,null,null,null,null,null,70]
["ПП","Производственная (по профилю специальности) практика",null,null,null,null,null,null,null,null,null,null,null,"час",null,{"$f":"P71+P72","v":180},"нед",{"$f":"R71+R72","v":5},null,null,null,null,{"$f":"SUM(W71:W74)","v":20},null,{"$f":"SUM(Y71:Y72)","v":20},null,null,null,null,{"$f":"SUM(AD71:AD72)","v":25},null,{"$f":"SUM(AF71:AF72)","v":25},null,null,null,null,{"$f":"SUM(AK71:AK72)","v":20},null,{"$f":"SUM(AM71:AM72)","v":20},null,null,null,null,{"$f":"SUM(AR71:AR72)","v":25},null,{"$f":"SUM(AT71:AT72)","v":25},null,null,null,null,{"$f":"SUM(AY71:AY72)","v":20},null,{"$f":"SUM(BA71:BA72)","v":20},null,null,null,null,{"$f":"SUM(BF71:BF72)","v":25},null,{"$f":"SUM(BH71:BH72)","v":25},null,null,null,null,{"$f":"SUM(BM71:BM72)","v":20},null,{"$f":"SUM(BO71:BO72)","v":20},null,null,null,null,{"$f":"SUM(BT71:BT72)","v":25},null,{"$f":"SUM(BV71:BV72)","v":25},null,null,"час",null,null,"нед",null,null,null,"час",null,null,"нед",null,null,null,"час",null,null,"нед",null,null,null,"час",null,null,"нед",null,null,null,"час",null,null,"нед",null,null,null,"час",null,null,"нед",null,null,null,"час",null,null,"нед",null,null,null,"час",null,null,"нед"]
["ПП.01","Исполнительская (по профилю специальности)",null,null,null,null,null,null,null,null,null,null,null,"час",null,{"$f":"W71+AD71+AK71+AR71+AY71+BF71+BM71+BT71","v":144},"нед",4,null,null,null,null,16,null,16,null,null,null,null,20,null,20,null,null,null,null,16,null,16,null,null,null,null,20,null,20,null,null,null,null,16,null,16,null,null,null,null,20,null,20,null,null,null,null,16,null,16,null,null,null,null,20,null,20]
["ПП.02","Педагогическая практика",null,null,null,null,null,null,null,null,null,null,null,"час",null,{"$f":"W72+AD72+AK72+AR72+AY72+BF72+BM72+BT72","v":36},"нед",1,null,null,null,null,4,null,4,null,null,null,null,5,null,5,null,null,null,null,4,null,4,null,null,null,null,5,null,5,null,null,null,null,4,null,4,null,null,null,null,5,null,5,null,null,null,null,4,null,4,null,null,null,null,5,null,5]
["ПДП.00","Преддипломная практика",null,null,null,null,null,null,null,null,null,null,null,"час",null,{"$f":"W73+AD73+AK73+AR73+AY73+BF73+BM73+BT73","v":36},"нед",1,null,null,null,null,null,null,null,null,null,null,null,null,null,null,null,null,null,null,null,null,null,null,null,null,null,null,null,null,null,null,null,null,null,null,null,null,null,null,null,null,null,null,null,null,null,null,16,null,16,null,null,null,null,20,null,20]
["ГИА.00","Государственная (итоговая) аттестация",null,null,null,null,null,null,null,null,null,null,null,null,null,null,"нед",4,null,null,null,null,null,null,null,null,null,null,null,null,null,null,null,null,null,null,null,null,null,null,null,null,null,null,null,null,null,null,null,null,null,null,null,null,null,null,null,null,null,null,null,null,null,null,null,null,null,null,null,null,null,null,"нед",4,null,null,null,null,null,"нед",null,null,null,null,null,null,"нед",null,null,null,null,null,null,"нед",null,null,null,null,null,null,"нед",null,null,null,null,null,null,"нед",null,null,null,null,null,null,"нед",null,null,null,null,null,null,"нед",null,null,null,null,null,null,"нед"]
["ГИА.01","Подготовка выпускной квалификационной работы",null,null,null,null,null,null,null,null,null,null,null,null,null,null,"нед",1,null,null,null,null,null,null,null,null,null,null,null,null,null,null,null,null,null,null,null,null,null,null,null,null,null,null,null,null,null,null,null,null,null,null,null,null,null,null,null,null,null,null,null,null,null,null,null,null,null,null,null,null,null,null,"нед",1,null,null,null,null,null,"нед",null,null,null,null,null,null,"нед",null,null,null,null,null,null,"нед",null,null,null,null,null,null,"нед",null,null,null,null,null,null,"нед",null,null,null,null,null,null,"нед",null,null,null,null,null,null,"нед",null,null,null,null,null,null,"нед"]
["ГИА.02","Защита выпускной квалификационной работы",null,null,null,null,null,null,null,null,null,null,null,null,null,null,"нед",1,null,null,null,null,null,null,null,null,null,null,null,null,null,null,null,null,null,null,null,null,null,null,null,null,null,null,null,null,null,null,null,null,null,null,null,null,null,null,null,null,null,null,null,null,null,null,null,null,null,null,null,null,null,null,"нед",1,null,null,null,null,null,"нед",null,null,null,null,null,null,"нед",null,null,null,null,null,null,"нед",null,null,null,null,null,null,"нед",null,null,null,null,null,null,"нед",null,null,null,null,null,null,"нед",null,null,null,null,null,null,"нед",null,null,null,null,null,null,"нед"]
["ГИА.03","Государственный экзамен(по видам инструментов)",null,null,null,null,null,null,null,null,null,null,null,null,null,null,"нед",1,null,null,null,null,null,null,null,null,null,null,null,null,null,null,null,null,null,null,null,null,null,null,null,null,null,null,null,null,null,null,null,null,null,null,null,null,null,null,null,null,null,null,null,null,null,null,null,null,null,null,null,null,null,null,"нед",1,null,null,null,null,null,"нед",null,null,null,null,null,null,"нед",null,null,null,null,null,null,"нед",null,null,null,null,null,null,"нед",null,null,null,null,null,null,"нед",null,null,null,null,null,null,"нед",null,null,null,null,null,null,"нед",null,null,null,null,null,null,"нед"]
["ГИА.04","Государственный экзамен",null,null,null,null,null,null,null,null,null,null,null,null,null,null,"нед",1,null,null,null,null,null,null,null,null,null,null,null,null,null,null,null,null,null,null,null,null,null,null,null,null,null,null,null,null,null,null,null,null,null,null,null,null,null,null,null,null,null,null,null,null,null,null,null,null,null,null,null,null,null,null,"нед",1,null,null,null,null,null,"нед",null,null,null,null,null,null,"нед",null,null,null,null,null,null,"нед",null,null,null,null,null,null,"нед",null,null,null,null,null,null,"нед",null,null,null,null,null,null,"нед",null,null,null,null,null,null,"нед",null,null,null,null,null,null,"нед"]
[null,"ВСЕГО ПО ДИСЦИПЛИНАМ И МДК",null,28,{"$f":"E9+E27+E34+E44+E56+E66","v":8},26,{"$f":"G9+G27+G34+G44+G56+G66","v":0},{"$f":"H9+H27+H34+H44+H56+H66","v":0},{"$f":"I9+I27+I34+I44+I56+I66","v":0},86,null,7722,{"$f":"SUM(M10,#REF!,M27,M34,M44,M56,M66)","v":{"$error":"#REF!"}},2574,{"$f":"SUM(O10,#REF!,O27,O34,O44,O56,O66)","v":{"$error":"#REF!"}},5148,2347,2801,null,null,864,null,null,null,null,null,null,null,null,null,null,null,null,null,null,null,null,null,null,null,null,null,null,null,null,null,null,null,null,null,null,null,null,null,null,null,null,null,null,null,null,null,null,null,null,null,null,null,null,null,null,null,null,null,null,null,null,null,null,null,null,null,null,null,null,null,null,null,null,null,null,null,null,null,null,null,null,null,null,null,null,null,null,null,null,null,null,null,null,null,null,null,null,null,null,null,null,null,null,null,null,null,null,null,null,null,null,null,null,null,null,null,4572,576]
[null,"Экзаменов",null,null,null,null,null,null,null,null,null,null,null,null,null,null,null,null,null,null,1,null,null,{"$f":"SUM(IF(IFERROR(MID(D14:D19,SEARCH(1,D14:D19),1),0)=\"1\",1,0),IF(IFERROR(MID(D21:D25,SEARCH(1,D21:D25),1),0)=\"1\",1,0),IF(IFERROR(MID(D28:D32,SEARCH(1,D28:D32),1),0)=\"1\",1,0),IF(IFERROR(MID(D35:D42,SEARCH(1,D35:D42),1),0)=\"1\",1,0),IF(IFERROR(MID(D45:D55,SEARCH(1,D45:D55),1),0)=\"1\",1,0),IF(IFERROR(MID(D57:D65,SEARCH(1,D57:D65),1),0)=\"1\",1,0),IF(IFERROR(MID(D67:D69,SEARCH(1,D67:D69),1),0)=\"1\",1,0))","v":1},null,null,null,5,null,null,{"$f":"SUM(IF(IFERROR(MID(D14:D19,SEARCH(2,D14:D19),1),0)=\"2\",1,0),IF(IFERROR(MID(D21:D25,SEARCH(2,D21:D25),1),0)=\"2\",1,0),IF(IFERROR(MID(D28:D32,SEARCH(2,D28:D32),1),0)=\"2\",1,0),IF(IFERROR(MID(D35:D42,SEARCH(2,D35:D42),1),0)=\"2\",1,0),IF(IFERROR(MID(D45:D55,SEARCH(2,D45:D55),1),0)=\"2\",1,0),IF(IFERROR(MID(D57:D65,SEARCH(2,D57:D65),1),0)=\"2\",1,0),IF(IFERROR(MID(D67:D69,SEARCH(2,D67:D69),1),0)=\"2\",1,0))","v":5},null,null,null,3,null,null,{"$f":"SUM(IF(IFERROR(MID(D14:D19,SEARCH(3,D14:D19),1),0)=\"3\",1,0),IF(IFERROR(MID(D21:D25,SEARCH(3,D21:D25),1),0)=\"3\",1,0),IF(IFERROR(MID(D28:D32,SEARCH(3,D28:D32),1),0)=\"3\",1,0),IF(IFERROR(MID(D35:D42,SEARCH(3,D35:D42),1),0)=\"3\",1,0),IF(IFERROR(MID(D45:D55,SEARCH(3,D45:D55),1),0)=\"3\",1,0),IF(IFERROR(MID(D57:D65,SEARCH(3,D57:D65),1),0)=\"3\",1,0),IF(IFERROR(MID(D67:D69,SEARCH(3,D67:D69),1),0)=\"3\",1,0))","v":3},null,null,null,5,null,null,5,null,null,null,3,null,null,{"$f":"SUM(IF(IFERROR(MID(D14:D19,SEARCH(5,D14:D19),1),0)=\"5\",1,0),IF(IFERROR(MID(D21:D25,SEARCH(5,D21:D25),1),0)=\"5\",1,0),IF(IFERROR(MID(D28:D32,SEARCH(5,D28:D32),1),0)=\"5\",1,0),IF(IFERROR(MID(D35:D42,SEARCH(5,D35:D42),1),0)=\"5\",1,0),IF(IFERROR(MID(D45:D55,SEARCH(5,D45:D55),1),0)=\"5\",1,0),IF(IFERROR(MID(D57:D65,SEARCH(5,D57:D65),1),0)=\"5\",1,0),IF(IFERROR(MID(D67:D69,SEARCH(5,D67:D69),1),0)=\"5\",1,0))","v":3},null,null,null,4,null,null,{"$f":"SUM(IF(IFERROR(MID(D14:D19,SEARCH(6,D14:D19),1),0)=\"6\",1,0),IF(IFERROR(MID(D21:D25,SEARCH(6,D21:D25),1),0)=\"6\",1,0),IF(IFERROR(MID(D28:D32,SEARCH(6,D28:D32),1),0)=\"6\",1,0),IF(IFERROR(MID(D35:D42,SEARCH(6,D35:D42),1),0)=\"6\",1,0),IF(IFERROR(MID(D45:D55,SEARCH(6,D45:D55),1),0)=\"6\",1,0),IF(IFERROR(MID(D57:D65,SEARCH(6,D57:D65),1),0)=\"6\",1,0),IF(IFERROR(MID(D67:D69,SEARCH(6,D67:D69),1),0)=\"6\",1,0))","v":4},null,null,null,4,null,null,{"$f":"SUM(IF(IFERROR(MID(D14:D19,SEARCH(7,D14:D19),1),0)=\"7\",1,0),IF(IFERROR(MID(D21:D25,SEARCH(7,D21:D25),1),0)=\"7\",1,0),IF(IFERROR(MID(D28:D32,SEARCH(7,D28:D32),1),0)=\"7\",1,0),IF(IFERROR(MID(D35:D42,SEARCH(7,D35:D42),1),0)=\"7\",1,0),IF(IFERROR(MID(D45:D55,SEARCH(7,D45:D55),1),0)=\"7\",1,0),IF(IFERROR(MID(D57:D65,SEARCH(7,D57:D65),1),0)=\"7\",1,0),IF(IFERROR(MID(D67:D69,SEARCH(7,D67:D69),1),0)=\"7\",1,0))","v":4},null,null,null,3,null,null,3]
[null,"Зачётов",null,null,null,null,null,null,null,null,null,null,null,null,null,null,null,null,null,null,1,null,null,{"$f":"SUM(IF(IFERROR(MID(E14:E19,SEARCH(1,E14:E19),1),0)=\"1\",1,0),IF(IFERROR(MID(E21:E25,SEARCH(1,E21:E25),1),0)=\"1\",1,0),IF(IFERROR(MID(E28:E32,SEARCH(1,E28:E32),1),0)=\"1\",1,0),IF(IFERROR(MID(E35:E42,SEARCH(1,E35:E42),1),0)=\"1\",1,0),IF(IFERROR(MID(E45:E55,SEARCH(1,E45:E55),1),0)=\"1\",1,0),IF(IFERROR(MID(E57:E65,SEARCH(1,E57:E65),1),0)=\"1\",1,0),IF(IFERROR(MID(E67:E69,SEARCH(1,E67:E69),1),0)=\"1\",1,0))","v":0},1,null,null,1,null,null,1,null,null,null,1,null,null,1,null,null,null,1,null,null,1,null,null,null,1,null,null,{"$f":"SUM(IF(IFERROR(MID(E14:E19,SEARCH(5,E14:E19),1),0)=\"5\",1,0),IF(IFERROR(MID(E21:E25,SEARCH(5,E21:E25),1),0)=\"5\",1,0),IF(IFERROR(MID(E28:E32,SEARCH(5,E28:E32),1),0)=\"5\",1,0),IF(IFERROR(MID(E35:E42,SEARCH(5,E35:E42),1),0)=\"5\",1,0),IF(IFERROR(MID(E45:E55,SEARCH(5,E45:E55),1),0)=\"5\",1,0),IF(IFERROR(MID(E57:E65,SEARCH(5,E57:E65),1),0)=\"5\",1,0),IF(IFERROR(MID(E67:E69,SEARCH(5,E67:E69),1),0)=\"5\",1,0))","v":1},null,null,null,1,null,null,{"$f":"SUM(IF(IFERROR(MID(E14:E19,SEARCH(6,E14:E19),1),0)=\"6\",1,0),IF(IFERROR(MID(E21:E25,SEARCH(6,E21:E25),1),0)=\"6\",1,0),IF(IFERROR(MID(E28:E32,SEARCH(6,E28:E32),1),0)=\"6\",1,0),IF(IFERROR(MID(E35:E42,SEARCH(6,E35:E42),1),0)=\"6\",1,0),IF(IFERROR(MID(E45:E55,SEARCH(6,E45:E55),1),0)=\"6\",1,0),IF(IFERROR(MID(E57:E65,SEARCH(6,E57:E65),1),0)=\"6\",1,0),IF(IFERROR(MID(E67:E69,SEARCH(6,E67:E69),1),0)=\"6\",1,0))","v":1},null,null,null,1,null,null,{"$f":"SUM(IF(IFERROR(MID(E14:E19,SEARCH(7,E14:E19),1),0)=\"7\",1,0),IF(IFERROR(MID(E21:E25,SEARCH(7,E21:E25),1),0)=\"7\",1,0),IF(IFERROR(MID(E28:E32,SEARCH(7,E28:E32),1),0)=\"7\",1,0),IF(IFERROR(MID(E35:E42,SEARCH(7,E35:E42),1),0)=\"7\",1,0),IF(IFERROR(MID(E45:E55,SEARCH(7,E45:E55),1),0)=\"7\",1,0),IF(IFERROR(MID(E57:E65,SEARCH(7,E57:E65),1),0)=\"7\",1,0),IF(IFERROR(MID(E67:E69,SEARCH(7,E67:E69),1),0)=\"7\",1,0))","v":1},null,null,null,1,null,null,{"$f":"SUM(IF(IFERROR(MID(E14:E19,SEARCH(8,E14:E19),1),0)=\"8\",1,0),IF(IFERROR(MID(E21:E25,SEARCH(8,E21:E25),1),0)=\"8\",1,0),IF(IFERROR(MID(E28:E32,SEARCH(8,E28:E32),1),0)=\"8\",1,0),IF(IFERROR(MID(E35:E42,SEARCH(8,E35:E42),1),0)=\"8\",1,0),IF(IFERROR(MID(E45:E55,SEARCH(8,E45:E55),1),0)=\"8\",1,0),IF(IFERROR(MID(E57:E65,SEARCH(8,E57:E65),1),0)=\"8\",1,0),IF(IFERROR(MID(E67:E69,SEARCH(8,E67:E69),1),0)=\"8\",1,0))","v":1}]
[null,"Дифференицрованных зачётов",null,null,null,null,null,null,null,null,null,null,null,null,null,null,null,null,null,null,3,null,null,{"$f":"SUM(IF(IFERROR(MID(F14:F19,SEARCH(1,F14:F19),1),0)=\"1\",1,0),IF(IFERROR(MID(F21:F25,SEARCH(1,F21:F25),1),0)=\"1\",1,0),IF(IFERROR(MID(F28:I32,SEARCH(1,F28:I32),1),0)=\"1\",1,0),IF(IFERROR(MID(F35:F42,SEARCH(1,F35:F42),1),0)=\"1\",1,0),IF(IFERROR(MID(F45:F55,SEARCH(1,F45:F55),1),0)=\"1\",1,0),IF(IFERROR(MID(F57:F65,SEARCH(1,F57:G65),1),0)=\"1\",1,0),IF(IFERROR(MID(F67:F69,SEARCH(1,F67:F69),1),0)=\"1\",1,0))","v":4},null,null,null,4,null,null,{"$f":"SUM(IF(IFERROR(MID(F14:F19,SEARCH(2,F14:F19),1),0)=\"2\",1,0),IF(IFERROR(MID(F21:F25,SEARCH(2,F21:F25),1),0)=\"2\",1,0),IF(IFERROR(MID(F28:H32,SEARCH(2,F28:I32),1),0)=\"2\",1,0),IF(IFERROR(MID(F35:F42,SEARCH(2,F35:F42),1),0)=\"2\",1,0),IF(IFERROR(MID(F45:F55,SEARCH(2,F45:F55),1),0)=\"2\",1,0),IF(IFERROR(MID(F57:F65,SEARCH(2,F57:G65),1),0)=\"2\",1,0),IF(IFERROR(MID(F67:F69,SEARCH(2,F67:F69),1),0)=\"2\",1,0))","v":4},null,null,null,1,null,null,{"$f":"SUM(IF(IFERROR(MID(F14:F19,SEARCH(3,F14:F19),1),0)=\"3\",1,0),IF(IFERROR(MID(F21:F25,SEARCH(3,F21:F25),1),0)=\"3\",1,0),IF(IFERROR(MID(F28:H32,SEARCH(3,F28:F32),1),0)=\"3\",1,0),IF(IFERROR(MID(F35:F42,SEARCH(3,F35:F42),1),0)=\"3\",1,0),IF(IFERROR(MID(F45:F55,SEARCH(3,F45:F55),1),0)=\"3\",1,0),IF(IFERROR(MID(F57:F65,SEARCH(3,F57:F65),1),0)=\"3\",1,0),IF(IFERROR(MID(F67:F69,SEARCH(3,F67:F69),1),0)=\"3\",1,0))","v":1},null,null,null,5,null,null,{"$f":"SUM(IF(IFERROR(MID(F14:F19,SEARCH(4,F14:F19),1),0)=\"4\",1,0),IF(IFERROR(MID(F21:F25,SEARCH(4,F21:F25),1),0)=\"4\",1,0),IF(IFERROR(MID(F28:F32,SEARCH(4,F28:F32),1),0)=\"4\",1,0),IF(IFERROR(MID(F35:F42,SEARCH(4,F35:F42),1),0)=\"4\",1,0),IF(IFERROR(MID(F45:F55,SEARCH(4,F45:F55),1),0)=\"4\",1,0),IF(IFERROR(MID(F57:F65,SEARCH(4,F57:F65),1),0)=\"4\",1,0),IF(IFERROR(MID(F67:F69,SEARCH(4,F67:F69),1),0)=\"4\",1,0))","v":5},null,null,null,1,null,null,{"$f":"SUM(IF(IFERROR(MID(F14:F19,SEARCH(5,F14:F19),1),0)=\"5\",1,0),IF(IFERROR(MID(F21:F25,SEARCH(5,F21:F25),1),0)=\"5\",1,0),IF(IFERROR(MID(F28:F32,SEARCH(5,F28:F32),1),0)=\"5\",1,0),IF(IFERROR(MID(F35:F42,SEARCH(5,F35:F42),1),0)=\"5\",1,0),IF(IFERROR(MID(F45:F55,SEARCH(5,F45:F55),1),0)=\"5\",1,0),IF(IFERROR(MID(F57:F65,SEARCH(5,F57:F65),1),0)=\"5\",1,0),IF(IFERROR(MID(F67:F69,SEARCH(5,F67:F69),1),0)=\"5\",1,0))","v":1},null,null,null,3,null,null,{"$f":"SUM(IF(IFERROR(MID(F14:F19,SEARCH(6,F14:F19),1),0)=\"6\",1,0),IF(IFERROR(MID(F21:F25,SEARCH(6,F21:F25),1),0)=\"6\",1,0),IF(IFERROR(MID(F28:F32,SEARCH(6,F28:F32),1),0)=\"6\",1,0),IF(IFERROR(MID(F35:F42,SEARCH(6,F35:F42),1),0)=\"6\",1,0),IF(IFERROR(MID(F45:F55,SEARCH(6,F45:F55),1),0)=\"6\",1,0),IF(IFERROR(MID(F57:F65,SEARCH(6,F57:F65),1),0)=\"6\",1,0),IF(IFERROR(MID(F67:F69,SEARCH(6,F67:F69),1),0)=\"6\",1,0))","v":3},null,null,null,2,null,null,{"$f":"SUM(IF(IFERROR(MID(F14:F19,SEARCH(7,F14:F19),1),0)=\"7\",1,0),IF(IFERROR(MID(F21:F25,SEARCH(7,F21:F25),1),0)=\"7\",1,0),IF(IFERROR(MID(F28:F32,SEARCH(7,F28:F32),1),0)=\"7\",1,0),IF(IFERROR(MID(F35:F42,SEARCH(7,F35:F42),1),0)=\"7\",1,0),IF(IFERROR(MID(F45:F55,SEARCH(7,F45:F55),1),0)=\"7\",1,0),IF(IFERROR(MID(F57:F65,SEARCH(7,F57:F65),1),0)=\"7\",1,0),IF(IFERROR(MID(F67:F69,SEARCH(7,F67:F69),1),0)=\"7\",1,0))","v":2},null,null,null,6,null,null,{"$f":"SUM(IF(IFERROR(MID(F14:F19,SEARCH(8,F14:F19),1),0)=\"8\",1,0),IF(IFERROR(MID(F21:F25,SEARCH(8,F21:F25),1),0)=\"8\",1,0),IF(IFERROR(MID(F28:F32,SEARCH(8,F28:F32),1),0)=\"8\",1,0),IF(IFERROR(MID(F35:F42,SEARCH(8,F35:F42),1),0)=\"8\",1,0),IF(IFERROR(MID(F45:F55,SEARCH(8,F45:F55),1),0)=\"8\",1,0),IF(IFERROR(MID(F57:F65,SEARCH(8,F57:F65),1),0)=\"8\",1,0),IF(IFERROR(MID(F67:F69,SEARCH(8,F67:F69),1),0)=\"8\",1,0))","v":6}]
[null,"Контрольных работ (итоговые письм. классные)"]
[null,"Контрольных работ (домашние)"]

{"sheet":"Кабинеты","index":3,"n_rows":16,"n_cols":3,"rows_kept":16,"cut":false,"hidden":false,"merged":[]}
[null,"№","Наименование"]
[null,"1","Кабинеты:  русского языка и литературы;"]
[null,"2","математики и информатики;"]
[null,"3","истории, географии и обществознания;"]
[null,"4","гуманитарных и социально-экономических дисциплин;"]
[null,"5","мировой художественной культуры;"]
[null,"6","музыкально-теоретических дисциплин;"]
[null,"7","музыкальной литературы."]
[null,"8","Учебные классы:  для групповых и индивидуальных занятий;    "]
[null,"9","для проведения оркестровых и ансамблевых занятий;"]
[null,10,"для занятий по междисциплинарному курсу «Оркестровый класс, изучение родственных инструментов» со специализированным оборудованием;"]
[null,11," для занятий по междисциплинарному курсу «Дирижирование и чтение оркестровых партитур», оснащенные зеркалами и двумя роялями."]
[null,12,"Спортивный комплекс:   спортивный зал; место для стрельбы.  "]
[null,13,"Залы:  концертный зал от 100 посадочных мест с концертными роялями, пультами и звукотехническим оборудованием, органом;   малый концертный зал от 30 посадочных мест с концертным роялем"]
[null,14,"библиотека, читальный зал с выходом в сеть Интернет; "]
[null,15,"помещения для работы со специализированными материалами (фонотека, видеотека), соответствующими профилю подготовки. "]

{"sheet":"Start","index":4,"n_rows":0,"n_cols":0,"rows_kept":0,"cut":false,"hidden":true,"merged":[]}